Workbook

Sheet Special Rates 2023-24
E4: 2023/24 Calculation of Special School Funding Rates
B8: DfE | E8: =IFERROR(VLOOKUP(DFENUM,DATA!B5:C28,2,0),"") -> 
B11: Section 1 - Commissioned Place numbers
B13: Academic Year | C13: Pre-16 | D13: Post-16 | E13: Weekday Residential | F13: Weekend Residential | H13: High Needs Place numbers as agreed annually with the Local Authority's SEN team
B15: 2022/23 | C15: =IFERROR(VLOOKUP(DFENUM,DATA!B5:K28,3,0),0) -> 0 | D15: =IFERROR(VLOOKUP(DFENUM,DATA!B5:K28,5,0),0) -> 0 | E15: =IFERROR(VLOOKUP(DFENUM,DATA!B5:K28,7,0),0) -> 0 | F15: =IFERROR(VLOOKUP(DFENUM,DATA!B5:K28,9,0),0) -> 0 | H15: Place numbers 2022-23 agreed November 2021
B17: 2023/24 | C17: =IFERROR(VLOOKUP(DFENUM,DATA!B5:K28,4,0),0) -> 0 | D17: =IFERROR(VLOOKUP(DFENUM,DATA!B5:K28,6,0),0) -> 0 | E17: =IFERROR(VLOOKUP(DFENUM,DATA!B5:K28,8,0),0) -> 0 | F17: =IFERROR(VLOOKUP(DFENUM,DATA!B5:K28,10,0),0) -> 0 | H17: Place numbers 2023-24 agreed November 2022
B19: Movement | C19: =C17-C15 -> 0 | D19: =D17-D15 -> 0 | E19: =E17-E15 -> 0 | F19: =F17-F15 -> 0
L23: Day Pupil | P23: Weekday | S23: Weekend
B24: Section 2 - Calculation of funding rate for April 2023 to March 2024
J25: MLD & SLCN | K25: SEMH | L25: SLD | M25: PD & PMLD | N25: ASD | P25: PD & PMLD | Q25: ASD | S25: PD & PMLD
A27: (A) | B27: April 2023 to August 2023 (Formula only excluding MFG)- | J27: =IFERROR(VLOOKUP(DFENUM,DATA!B5:AA28,11,0),0) -> 0 | K27: =IFERROR(VLOOKUP(DFENUM,DATA!B5:AA28,17,0),0) -> 0 | L27: =IFERROR(VLOOKUP(DFENUM,DATA!B5:AA28,20,0),0) -> 0 | M27: =IFERROR(VLOOKUP(DFENUM,DATA!B5:AA28,23,0),0) -> 0 | N27: =IFERROR(VLOOKUP(DFENUM,DATA!B5:AA28,14,0),0) -> 0 | P27: =IFERROR(VLOOKUP(DFENUM,DATA!B5:BX28,50,0),0) -> 0 | Q27: =IFERROR(VLOOKUP(DFENUM,DATA!B5:BX28,47,0),0) -> 0 | S27: =IFERROR(VLOOKUP(DFENUM,DATA!B5:BX28,53,0),0) -> 0
B28: Based on Academic Year 2022 to 2023. Data taken from 2022-23 Funding Rates Calculation.
A30: (B) | B30: September 2023 to March 2024 (Formula only excluding MFG) | J30: =IFERROR(VLOOKUP(DFENUM,DATA!B5:AA28,12,0),0) -> 0 | K30: =IFERROR(VLOOKUP(DFENUM,DATA!B5:AA28,18,0),0) -> 0 | L30: =IFERROR(VLOOKUP(DFENUM,DATA!B5:AA28,21,0),0) -> 0 | M30: =IFERROR(VLOOKUP(DFENUM,DATA!B5:AA28,24,0),0) -> 0 | N30: =IFERROR(VLOOKUP(DFENUM,DATA!B5:AA28,15,0),0) -> 0 | P30: =IFERROR(VLOOKUP(DFENUM,DATA!B5:BX28,52,0),0) -> 0 | Q30: =IFERROR(VLOOKUP(DFENUM,DATA!B5:BX28,49,0),0) -> 0 | S30: =IFERROR(VLOOKUP(DFENUM,DATA!B5:BX28,55,0),0) -> 0
B31: Based on Academic Year 2023 to 2024. See section 3 for calculation.
A33: (C) | B33: April 2023 to March 2024 | I33: = (A) X 5/12 | J33: =(J27*5/12)+(J30*7/12) -> 0 | K33: =(K27*5/12)+(K30*7/12) -> 0 | L33: =(L27*5/12)+(L30*7/12) -> 0 | M33: =(M27*5/12)+(M30*7/12) -> 0 | N33: =(N27*5/12)+(N30*7/12) -> 0 | P33: =IF(DFENUM=7073,P27,(P27*5/12)+(P30*7/12)) -> 0 | Q33: =IF(DFENUM=7073,Q27,(Q27*5/12)+(Q30*7/12)) -> 0 | S33: =IF(DFENUM=7073,S27,(S27*5/12)+(S30*7/12)) -> 0
B34: Based on Academic Year 2022 to 2023 (April 2023 to August 2023) 5/12's + | I34: +
B35: Academic Year 2023 to 2024 (September 2023 to March 2024) 7/12's | I35: (B) X 7/12
A37: (D) | B37: Final funding rate for financial Year 2021 to 2022 | J37: =IFERROR(VLOOKUP(DFENUM,DATA!$B:$CL,85,0),0) -> 0 | K37: =IFERROR(VLOOKUP(DFENUM,DATA!$B:$CL,87,0),0) -> 0 | L37: =IFERROR(VLOOKUP(DFENUM,DATA!$B:$CL,88,0),0) -> 0 | M37: =IFERROR(VLOOKUP(DFENUM,DATA!$B:$CL,89,0),0) -> 0 | N37: =IFERROR(VLOOKUP(DFENUM,DATA!$B:$CL,86,0),0) -> 0 | P37: =IFERROR(VLOOKUP(DFENUM,DATA!$B:$CO,91,0),0) -> 0 | Q37: =IFERROR(VLOOKUP(DFENUM,DATA!$B:$CO,90,0),0) -> 0 | S37: =IFERROR(VLOOKUP(DFENUM,DATA!$B:$CO,92,0),0) -> 0
A38: (E) | B38: MFG rate (D) X 103% | J38: =mldlastyear*1.03 -> 0 | K38: =besdlastyear*1.03 -> 0 | L38: =sldlastyear*1.03 -> 0 | M38: =pdlastyear*1.03 -> 0 | N38: =asdlastyear*1.03 -> 0 | P38: =pdweekdaylastyear*1.03 -> 0 | Q38: =asdweekdaylastyear*1.03 -> 0 | S38: =pdweekendlastyear*1.03 -> 0
A39: (F) | B39: Final funding rate for financial Year 2022 to 2023 | J39: =IFERROR(VLOOKUP(DFENUM,DATA!$B:$BD,13,0),0) -> 0 | K39: =IFERROR(VLOOKUP(DFENUM,DATA!$B:$BD,19,0),0) -> 0 | L39: =IFERROR(VLOOKUP(DFENUM,DATA!$B:$BD,22,0),0) -> 0 | M39: =IFERROR(VLOOKUP(DFENUM,DATA!$B:$BD,25,0),0) -> 0 | N39: =IFERROR(VLOOKUP(DFENUM,DATA!$B:$BD,16,0),0) -> 0 | P39: =IFERROR(VLOOKUP(DFENUM,DATA!$B:$BD,51,0),0) -> 0 | Q39: =IFERROR(VLOOKUP(DFENUM,DATA!$B:$BD,48,0),0) -> 0 | S39: =IFERROR(VLOOKUP(DFENUM,DATA!$B:$BD,54,0),0) -> 0
A40: (G) | B40: MFG rate (F) X 100% | J40: =J39 -> 0 | K40: =K39 -> 0 | L40: 0 | M40: 0 | N40: 0 | P40: =P39 -> 0 | Q40: =Q39 -> 0 | S40: =S39 -> 0
J44: MLD & SLCN | K44: SEMH | L44: SLD | M44: PD & PMLD | N44: ASD | P44: PD & PMLD | Q44: ASD | S44: PD & PMLD
A45: (H) | B45: Final Rate (Greater of Formula (C) , MFG (E) or MFG (G)) | G45: Formula (C) | J45: =J33 -> 0 | K45: =K33 -> 0 | L45: =L33 -> 0 | M45: =M33 -> 0 | N45: =N33 -> 0 | P45: =P33 -> 0 | Q45: =Q33 -> 0 | S45: =S33 -> 0
G46: MFG funding rate (E) | J46: =J38 -> 0 | K46: =K38 -> 0 | L46: =L38 -> 0 | M46: =M38 -> 0 | N46: =N38 -> 0 | P46: =P38 -> 0 | Q46: =Q38 -> 0 | S46: =S38 -> 0
G47: MFG funding rate (G) | J47: =J40 -> 0 | K47: =K40 -> 0 | L47: 0 | M47: 0 | N47: 0 | P47: =P40 -> 0 | Q47: =Q40 -> 0 | S47: =S40 -> 0
G48: Amount of MFG if (E) or (G) is greater than (C) | J48: =IF(AND(J47>J46,J47>J45),J47-J45,IF(AND(J46>J47,J46>J45),J46-J45,0)) -> 0 | K48: =IF(AND(K47>K46,K47>K45),K47-K45,IF(AND(K46>K47,K46>K45),K46-K45,0)) -> 0 | L48: 0 | M48: 0 | N48: 0 | P48: 0 | Q48: 0 | S48: 0
G49: Final Rate formula plus MFG | J49: =SUM(J45,J48) -> 0 | K49: =SUM(K45,K48) -> 0 | L49: =SUM(L45,L48) -> 0 | M49: =SUM(M45,M48) -> 0 | N49: =SUM(N45,N48) -> 0 | P49: =SUM(P45,P48) -> 0 | Q49: =SUM(Q45,Q48) -> 0 | S49: =SUM(S45,S48) -> 0
A50: (I) | B50: Place Plus Breakdown
G51: Element 1 & 2 | J51: 10000 | K51: 10000 | L51: 10000 | M51: 10000 | N51: 10000 | P51: =IF($P$49=0,0,10000) -> 0 | Q51: =IF($Q$49=0,0,10000) -> 0 | S51: =IF($S$49=0,0,10000) -> 0
G52: Element 3 | J52: =J49-J51 -> -10000 | K52: =K49-K51 -> -10000 | L52: -10000 | M52: -10000 | N52: -10000 | P52: =P49-P51 -> 0 | Q52: 0 | S52: =S49-S51 -> 0
G53: Total rate | J53: =SUM(J51:J52) -> 0 | K53: =SUM(K51:K52) -> 0 | L53: =SUM(L51:L52) -> 0 | M53: =SUM(M51:M52) -> 0 | N53: =SUM(N51:N52) -> 0 | P53: =SUM(P51:P52) -> 0 | Q53: =SUM(Q51:Q52) -> 0 | S53: =SUM(S51:S52) -> 0
B54: Section 3 - Pupil Led Elements
J55: MLD & SLCN | K55: SEMH | L55: SLD | M55: PD & PMLD | N55: ASD | P55: PD & PMLD | Q55: ASD | S55: PD & PMLD
B56: Day Rate | J56: 9977.477763 | K56: 16521.63878 | L56: 14325.2181 | M56: 21570.7003 | N56: 16521.63878 | P56: =IF($P$30=0,0,M56) -> 0 | Q56: =IF($Q$30=0,0,N56) -> 0 | S56: =IF($S$33=0,0,M56) -> 0
B57: Adjusted Rate due to School type (see note) | J57: 0 | K57: 0 | L57: 0 | M57: 0 | N57: =IFERROR(VLOOKUP(DFENUM,DATA!B5:BE28,27,0),0)-N56 -> -16521.63878 | P57: 0 | Q57: =IF($Q$30=0,0,N57) -> 0 | S57: 0
B58: Residential Weekday rate | J58: 0 | K58: 0 | L58: 0 | M58: 0 | N58: 0 | P58: =IF($P$30=0,0,IFERROR(VLOOKUP(DFENUM,DATA!B5:BX26,56,0),0)) -> 0 | Q58: =IF($Q$30=0,0,IFERROR(VLOOKUP(DFENUM,DATA!B5:BX26,56,0),0)) -> 0 | S58: =IF($S$33=0,0,IFERROR(VLOOKUP(DFENUM,DATA!B5:BX26,56,0),0)) -> 0
B59: Residential Weekend rate | J59: 0 | K59: 0 | L59: 0 | M59: 0 | N59: 0 | P59: 0 | Q59: 0 | S59: =IF($S$33=0,0,IFERROR(VLOOKUP(DFENUM,DATA!B5:BX26,57,0),0)) -> 0
B60: Subsidy on day places (catering) | J60: 119.1518898 | K60: =$J60 -> 119.1518898 | L60: =$J60 -> 119.1518898 | M60: 119.1518898 | N60: 119.1518898 | P60: =IF($P$30=0,0,M60) -> 0 | Q60: =IF($Q$30=0,0,N60) -> 0 | S60: =IF($S$33=0,0,P60) -> 0
B61: Lunch Grant | J61: 12.36481875 | K61: =$J61 -> 12.36481875 | L61: 12.36481875 | M61: 12.36481875 | N61: 12.36481875 | P61: =IF($P$30=0,0,M61) -> 0 | Q61: =IF($Q$30=0,0,N61) -> 0 | S61: =IF($S$33=0,0,P61) -> 0
B62: Specialist Schools Funding | J62: 102.6065368 | K62: 102.6065368 | L62: 102.6065368 | M62: 102.6065368 | N62: 102.6065368 | P62: =IF($P$30=0,0,M62) -> 0 | Q62: =IF($Q$30=0,0,N62) -> 0 | S62: 0
B63: Further Delegation | J63: 48.95918927 | K63: 48.95918927 | L63: 48.95918927 | M63: 48.95918927 | N63: 48.95918927 | P63: =IF($P$30=0,0,M63) -> 0 | Q63: =IF($Q$30=0,0,N63) -> 0 | S63: 0
B64: Residential Weekday Places Catering | J64: 0 | K64: 0 | L64: 0 | M64: 0 | N64: 0 | P64: 0 | Q64: 0 | S64: 0
B65: Residential Weekend Places Catering | J65: 0 | K65: 0 | L65: 0 | M65: 0 | N65: 0 | P65: 0 | Q65: 0 | S65: 0
B66: London Fringe Day Pupil | J66: =IFERROR(VLOOKUP(DFENUM,DATA!B5:BE28,29,0),0) -> 0 | K66: =IFERROR(VLOOKUP(DFENUM,DATA!B5:BE28,30,0),0) -> 0 | L66: =IFERROR(VLOOKUP(DFENUM,DATA!B5:BE28,31,0),0) -> 0 | M66: =IFERROR(VLOOKUP(DFENUM,DATA!B5:BE28,32,0),0) -> 0 | N66: =IFERROR(VLOOKUP(DFENUM,DATA!B5:BE28,33,0),0) -> 0 | P66: 0 | Q66: 0 | S66: 0
B67: London Fringe Weekday Residential Pupil | J67: 0 | K67: 0 | L67: 0 | M67: 0 | N67: 0 | P67: =IF($P$30=0,0,IFERROR(VLOOKUP(DFENUM,DATA!B5:BX28,58,0),0)) -> 0 | Q67: =IF($Q$30=0,0,IFERROR(VLOOKUP(DFENUM,DATA!B5:BX28,58,0),0)) -> 0 | S67: 0
B68: London Fringe Weekend Residential Pupil | J68: 0 | K68: 0 | L68: 0 | M68: 0 | N68: 0 | P68: 0 | Q68: 0 | S68: =IF($S$33=0,0,IFERROR(VLOOKUP(DFENUM,DATA!B5:BX28,59,0),0)) -> 0
B70: Rate for Pupil Led Elements | J70: =SUM(J56:J69) -> 10260.5602 | K70: =SUM(K56:K69) -> 16804.72122 | L70: =SUM(L56:L69) -> 14608.30053 | M70: =SUM(M56:M69) -> 21853.78274 | N70: =SUM(N56:N69) -> 283.0824346 | P70: =SUM(P56:P69) -> 0 | Q70: =SUM(Q56:Q69) -> 0 | S70: =SUM(S56:S69) -> 0
B72: Section 4 - School Led Elements
L73: Need Type
F74: Units | G74: Rate | H74: Total | I74: Places | J74: MLD & SLCN | K74: SEMH | L74: SLD | M74: PD & PMLD | N74: ASD | P74: PD & PMLD | Q74: ASD | S74: PD & PMLD
B75: Lump Sum Day | F75: =IF(DFENUM>0,1,0) -> 0 | G75: 389301.8221 | H75: =F75*G75 -> 0 | I75: =$C$17+$D$17 -> 0 | J75: =IF(I75=0,0,H75/I75) -> 0 | K75: =$J75 -> 0 | L75: =$J75 -> 0 | M75: 0 | N75: 0 | P75: =IF($P$30=0,0,M75) -> 0 | Q75: =IF($Q$30=0,0,N75) -> 0 | S75: =IF($S$33=0,0,M75) -> 0
B76: Lump Sum Catering Day | F76: =IF(DFENUM>0,1,0) -> 0 | G76: 2248.148864 | H76: =F76*G76 -> 0 | I76: =$C$17+$D$17 -> 0 | J76: =IF(I76=0,0,H76/I76) -> 0 | K76: =$J76 -> 0 | L76: 0 | M76: 0 | N76: 0 | P76: 0 | Q76: 0 | S76: =IF($S$33=0,0,M76) -> 0
B77: Specialist Schools Funding- Lump Sum | F77: =IF(DFENUM>0,1,0) -> 0 | G77: 13283.98378 | H77: 0 | I77: 0 | J77: 0 | K77: 0 | L77: 0 | M77: 0 | N77: 0 | P77: 0 | Q77: 0 | S77: 0
B78: Free Mid-day Meals | F78: =IFERROR(VLOOKUP(DFENUM,DATA!$B$5:$BE$28,43,0),0)*I78 -> 0 | G78: 466.4908893 | H78: 0 | I78: 0 | J78: 0 | K78: 0 | L78: 0 | M78: 0 | N78: 0 | P78: 0 | Q78: 0 | S78: 0
B79: Gross Day Floor Area (m2) | F79: =IFERROR(VLOOKUP(DFENUM,DATA!$B$5:$BE$28,37,0),0) -> 0 | G79: 33.72223046 | H79: =F79*G79 -> 0 | I79: 0 | J79: 0 | K79: 0 | L79: 0 | M79: 0 | N79: 0 | P79: 0 | Q79: 0 | S79: 0
B80: Grounds Site Area (hectares) | F80: =IFERROR(VLOOKUP(DFENUM,DATA!$B$5:$BE$28,40,0),0) -> 0 | G80: 1182.526302 | H80: 0 | I80: 0 | J80: 0 | K80: 0 | L80: 0 | M80: 0 | N80: 0 | P80: 0 | Q80: 0 | S80: 0
B81: Rentals | F81: =IF(IFERROR(VLOOKUP(DFENUM,DATA!$B$5:$BE$28,41,0),0)>0,1,0) -> 0 | G81: =IFERROR(VLOOKUP(DFENUM,DATA!$B$5:$BE$28,41,0),0) -> 0 | H81: 0 | I81: 0 | J81: 0 | K81: 0 | L81: 0 | M81: 0 | N81: 0 | P81: 0 | Q81: 0 | S81: 0
B82: Hydrotherapy Pool | F82: =IFERROR(VLOOKUP(DFENUM,DATA!$B$5:$BE$28,42,0),0) -> 0 | G82: 5620.37216 | H82: 0 | I82: 0 | J82: 0 | K82: 0 | L82: 0 | M82: 0 | N82: 0 | P82: 0 | Q82: 0 | S82: 0
B83: Split site- Band 1 | F83: =IFERROR(VLOOKUP(DFENUM,DATA!$B$5:$BE$28,45,0),0) -> 0 | G83: 4921.197863 | H83: 0 | I83: 0 | J83: 0 | K83: 0 | L83: 0 | M83: 0 | N83: 0 | P83: 0 | Q83: 0 | S83: 0
B84: Split site - Band 2 | F84: =IFERROR(VLOOKUP(DFENUM,DATA!$B$5:$BE$28,46,0),0) -> 0 | G84: 43194.8082 | H84: 0 | I84: 0 | J84: 0 | K84: 0 | L84: 0 | M84: 0 | N84: 0 | P84: 0 | Q84: 0 | S84: 0
B85: Residential Floor Area Weekday (m2) | F85: =IFERROR(VLOOKUP(DFENUM,DATA!$B$5:$BE$28,38,0),0) -> 0 | G85: 56.20320732 | H85: 0 | I85: =E17 -> 0 | J85: 0 | K85: 0 | L85: 0 | M85: 0 | N85: 0 | P85: =IF($P$30=0,0,((F85*G85)/I85)) -> 0 | Q85: =IF($Q$30=0,0,((F85*G85)/I85)) -> 0 | S85: =IF($S$33=0,0,((F85*G85)/I85)) -> 0
B86: Residential Floor Area Weekend (m2) | F86: =IFERROR(VLOOKUP(DFENUM,DATA!$B$5:$BE$28,39,0),0) -> 0 | G86: 73.06473485 | H86: 0 | I86: =E17 -> 0 | J86: 0 | K86: 0 | L86: 0 | M86: 0 | N86: 0 | P86: =IF($P$30=0,0,((F86*G86)/I86)) -> 0 | Q86: =IF($Q$30=0,0,((F86*G86)/I86)) -> 0 | S86: =IF($S$33=0,0,((F86*G86)/I86)) -> 0
B87: Lump Sum Residential | F87: =IF(SUM(P33:S33)>0,1,0) -> 0 | G87: 183701.864 | H87: 0 | I87: =E17 -> 0 | J87: 0 | K87: 0 | L87: 0 | M87: 0 | N87: 0 | P87: =IF($P$30=0,0,((F87*G87)/I87)) -> 0 | Q87: =IF($Q$30=0,0,((F87*G87)/I87)) -> 0 | S87: =IF($S$33=0,0,((F87*G87)/I87)) -> 0
B88: London Fringe Day Pupils | F88: =IFERROR(VLOOKUP(DFENUM,DATA!$B$5:$BE$28,44,0),0) -> 0 | G88: 4332.46388 | H88: 0 | I88: =$C$17+$D$17 -> 0 | J88: 0 | K88: 0 | L88: 0 | M88: 0 | N88: 0 | P88: 0 | Q88: 0 | S88: 0
B89: London Fringe Residential Pupils | F89: 0 | G89: 2713.796697 | H89: 0 | I89: =E17 -> 0 | J89: 0 | K89: 0 | L89: 0 | M89: 0 | N89: 0 | P89: =IF($P$30=0,0,IFERROR(VLOOKUP(DFENUM,DATA!B5:BX28,60,0),0)) -> 0 | Q89: =IF($Q$30=0,0,IFERROR(VLOOKUP(DFENUM,DATA!B5:BX28,60,0),0)) -> 0 | S89: =IF($S$33=0,0,IFERROR(VLOOKUP(DFENUM,DATA!B5:BX28,61,0),0)) -> 0
B91: Rate for School Led Elements | J91: =SUM(J75:J90) -> 0 | K91: =SUM(K75:K90) -> 0 | L91: =SUM(L75:L90) -> 0 | M91: =SUM(M75:M90) -> 0 | N91: =SUM(N75:N90) -> 0 | P91: =SUM(P75:P90) -> 0 | Q91: =SUM(Q75:Q90) -> 0 | S91: =SUM(S75:S90) -> 0
L95: Need Type
B96: Total Formula Rate | J96: MLD & SLCN | K96: SEMH | L96: SLD | M96: PD & PMLD | N96: ASD | P96: PD & PMLD | Q96: ASD | S96: PD & PMLD
J97: =J70+J91 -> 10260.5602 | K97: =K70+K91 -> 16804.72122 | L97: =L70+L91 -> 14608.30053 | M97: =M70+M91 -> 21853.78274 | N97: =N70+N91 -> 283.0824346 | P97: =P70+P91 -> 0 | Q97: =Q70+Q91 -> 0 | S97: =S70+S91 -> 0
J98: =ROUND(J97-mldnew,1) -> 10260.6 | K98: =ROUND(K97-besdnew,1) -> 16804.7 | L98: =ROUND(L97-sldnew,1) -> 14608.3 | M98: =ROUND(M97-pdnew,1) -> 21853.8 | N98: =ROUND(N97-asdnew,1) -> 283.1 | P98: =ROUND(P97-pdweekdaynew,1) -> 0 | Q98: =ROUND(Q97-asdweekdaynew,1) -> 0 | S98: =ROUND(S97-pdweekendnew,1) -> 0
N99: =IF(AND(J98=0,K98=0,L98=0,M98=0,N98=0),"OK","ERROR") -> ERROR | S99: =IF(AND(P98=0,Q98=0,S98=0),"OK","ERROR") -> OK
S100: =IF(AND(N99="OK",S99="OK"),"OK","ERROR") -> ERROR
B102: Note
B103: ASD
B104: - All ASD pupils in Stone Bay are funded at ASD2
B105: - 10% of all ASD places in C & I and PSCN Special Schools are funded at ASD2
B113: Section 5 - Analysis of Rate Changes
D116: 2022/23 Financial Year | F116: 2023/24 Financial Year | H116: Movement £ | I116: Movement %
B117: Pupil Led Elements
C118: MLD & SLCN | E118: =IFERROR(VLOOKUP(DFENUM,DATA!$B:$CG,63,0),"") ->  | G118: =IFERROR(VLOOKUP(DFENUM,DATA!$B:$CG,74,0),"") ->  | H118: =IFERROR(G118-E118,"") ->  | I118: =IFERROR(H118/E118,"") -> 
C119: SEMH | E119: =IFERROR(VLOOKUP(DFENUM,DATA!B:CG,64,0),"") ->  | G119: =IFERROR(VLOOKUP(DFENUM,DATA!$B:$CG,75,0),"") ->  | H119: =IFERROR(G119-E119,"") ->  | I119: =IFERROR(H119/E119,"") -> 
C120: SLD | E120: =IFERROR(VLOOKUP(DFENUM,DATA!B:CG,65,0),"") ->  | G120: =IFERROR(VLOOKUP(DFENUM,DATA!$B:$CG,76,0),"") ->  | H120: =IFERROR(G120-E120,"") ->  | I120: =IFERROR(H120/E120,"") -> 
C121: PD & PMLD | E121: =IFERROR(VLOOKUP(DFENUM,DATA!B:CG,66,0),"") ->  | G121: =IFERROR(VLOOKUP(DFENUM,DATA!$B:$CG,77,0),"") ->  | H121: =IFERROR(G121-E121,"") ->  | I121: =IFERROR(H121/E121,"") -> 
C122: ASD | E122: =IFERROR(VLOOKUP(DFENUM,DATA!B:CG,67,0),"") ->  | G122: =IFERROR(VLOOKUP(DFENUM,DATA!$B:$CG,78,0),"") ->  | H122: =IFERROR(G122-E122,"") ->  | I122: =IFERROR(H122/E122,"") -> 
B123: School Led Elements
C124: All | E124: =IFERROR(VLOOKUP(DFENUM,DATA!B:CG,68,0),"") ->  | G124: =IFERROR(VLOOKUP(DFENUM,DATA!$B:$CG,79,0),"") ->  | H124: =IFERROR(G124-E124,"") ->  | I124: =IFERROR(H124/E124,"") -> 
B125: Minimum Funding Guarantee
C126: MLD & SLCN | E126: =IFERROR(VLOOKUP(DFENUM,DATA!B:CG,69,0),"") ->  | G126: =IFERROR(VLOOKUP(DFENUM,DATA!$B:$CG,80,0),"") ->  | H126: =IFERROR(G126-E126,"") ->  | I126: =IFERROR(H126/E126,"") -> 
C127: SEMH | E127: =IFERROR(VLOOKUP(DFENUM,DATA!B:CG,70,0),"") ->  | G127: =IFERROR(VLOOKUP(DFENUM,DATA!$B:$CG,81,0),"") ->  | H127: =IFERROR(G127-E127,"") ->  | I127: =IFERROR(H127/E127,"") -> 
C128: SLD | E128: =IFERROR(VLOOKUP(DFENUM,DATA!B:CG,71,0),"") ->  | G128: =IFERROR(VLOOKUP(DFENUM,DATA!$B:$CG,82,0),"") ->  | H128: =IFERROR(G128-E128,"") ->  | I128: =IFERROR(H128/E128,"") -> 
C129: PD & PMLD | E129: =IFERROR(VLOOKUP(DFENUM,DATA!B:CG,72,0),"") ->  | G129: =IFERROR(VLOOKUP(DFENUM,DATA!$B:$CG,83,0),"") ->  | H129: =IFERROR(G129-E129,"") ->  | I129: =IFERROR(H129/E129,"") -> 
C130: ASD | E130: =IFERROR(VLOOKUP(DFENUM,DATA!B:CG,73,0),"") ->  | G130: =IFERROR(VLOOKUP(DFENUM,DATA!$B:$CG,84,0),"") ->  | H130: =IFERROR(G130-E130,"") ->  | I130: =IFERROR(H130/E130,"") -> 
B133: Section 6 - 2023/24 Nursery Provision Lump Sum Calculation
B135: Rates
B137: Leadership Lump Sum per provision | E137: 58097.6032
B138: Day Rate per FTE (see breakdown) | E138: 10087.75499
B140: Calculation
D142: Units | E142: Rate | F142: Total
B143: Leadership Lump Sum | D143: =IF(D144>9,2,IF(D144>0,1,0)) -> 0 | E143: =E137 -> 58097.6032 | F143: =D143*E143 -> 0
B144: Day Rate | D144: =IFERROR(VLOOKUP('Special Rates 2023-24'!DFENUM,DATA!B:BK,62,0),0) -> 0 | E144: =E138 -> 10087.75499 | F144: =D144*E144 -> 0
E146: Total Funding at this provision: | F146: =IFERROR(ROUND(F144+F143,0),"TBC") -> 0

Sheet DATA (hidden)
B1: 1 | C1: 2 | D1: 3 | E1: 4 | F1: 5 | G1: 6 | H1: 7 | I1: 8 | J1: 9 | K1: 10 | L1: 11 | M1: 12 | N1: 13 | O1: 14 | P1: 15 | Q1: 16 | R1: 17 | S1: 18 | T1: 19 | U1: 20 | V1: 21 | W1: 22 | X1: 23 | Y1: 24 | Z1: 25 | AA1: 26 | AB1: 27 | AC1: 28 | AD1: 29 | AE1: 30 | AF1: 31 | AG1: 32 | AH1: 33 | AI1: 34 | AJ1: 35 | AK1: 36 | AL1: 37 | AM1: 38 | AN1: 39 | AO1: 40 | AP1: 41 | AQ1: 42 | AR1: 43 | AS1: 44 | AT1: 45 | AU1: 46 | AV1: 47 | AW1: 48 | AX1: 49 | AY1: 50 | AZ1: 51 | BA1: 52 | BB1: 53 | BC1: 54 | BD1: 55 | BE1: 56 | BF1: 57 | BG1: 58 | BH1: 59 | BI1: 60 | BJ1: 61 | BK1: 62 | BL1: 63 | BM1: 64 | BN1: 65 | BO1: 66 | BP1: 67 | BQ1: 68 | BR1: 69 | BS1: 70 | BT1: 71 | BU1: 72 | BV1: 73 | BW1: 74 | BX1: 75 | BY1: 76 | BZ1: 77 | CA1: 78 | CB1: 79 | CC1: 80 | CD1: 81 | CE1: 82 | CF1: 83 | CG1: 84 | CH1: 85 | CI1: 86 | CJ1: 87 | CK1: 88 | CL1: 89 | CM1: 90 | CN1: 91 | CO1: 92
D2: Places | L2: Rates | AV2: Residential Rates | BL2: 2022/23 Financial Year | BW2: 2023/24 Financial Year | CH2: 2021/22 Financial Year
D3: Pre-16 | F3: Post-16 | H3: Weekday | J3: Weekend | L3: MLD & SLCN | O3: ASD | R3: SEMH | U3: SLD | X3: PD & PMLD | AD3: London Fringe | AV3: ASD Weekday | AY3: PD Weekday | BB3: PD Weekend | BE3: Residential Winter Rates | BG3: Residential Pupil Fringe | BI3: Residential School Fringe | BL3: Pupil Led | BQ3: School | BR3: MFG | BW3: Pupil Led | CB3: School | CC3: MFG | CH3: Total rate
B4: DFE | C4: School | D4: 22/23 | E4: 23/24 | F4: 22/23 | G4: 23/24 | H4: 22/23 | I4: 23/24 | J4: 22/23 | K4: 23/24 | L4: Summer | M4: Winter | N4: Old Financial Year | O4: Summer | P4: Winter | Q4: Old Financial Year | R4: Summer | S4: Winter | T4: Old Financial Year | U4: Summer | V4: Winter | W4: Old Financial Year | X4: Summer | Y4: Winter | Z4: Old Financial Year | AB4: ASD Rate | AC4: SEMH Rate | AD4: MLD & SLCN | AE4: SEMH | AF4: SLD | AG4: PD & PMLD | AH4: ASD | AI4: Residential weekdayASD | AJ4: Residential weekdayPD & PMLD | AK4: Residential WeekendPD & PMLD | AL4: Gross Day Floor Area | AM4: Residential floor area weekday | AN4: Residential floor area weekend | AO4: Grounds site area | AP4: Rentals | AQ4: Hydrotherapy Pool | AR4: No of FSM | AS4: London Fringe | AT4: Split site- Band 1 | AU4: Split site - Band 2 | AV4: Summer | AW4: Last Financial Year | AX4: Winter | AY4: Summer | AZ4: Last Financial Year | BA4: Winter | BB4: Summer | BC4: Last Financial Year | BD4: Winter | BE4: Weekday | BF4: Weekend | BG4: Weekday | BH4: Weekend | BI4: Weekday | BJ4: Weekend | BK4: Nursery FTE | BL4: MLD&SLCN | BM4: SEMH | BN4: SLD | BO4: PD&PMLD | BP4: ASD | BQ4: All | BR4: MLD&SLCN | BS4: SEMH | BT4: SLD | BU4: PD&PMLD | BV4: ASD | BW4: MLD&SLCN | BX4: SEMH | BY4: SLD | BZ4: PD&PMLD | CA4: ASD | CB4: All | CC4: MLD&SLCN | CD4: SEMH | CE4: SLD | CF4: PD&PMLD | CG4: ASD | CH4: MLD & SLCN | CI4: ASD | CJ4: SEMH | CK4: SLD | CL4: PD & PMLD | CM4: ASD Weekday | CN4: PD Weekday | CO4: PD Weekend
B5: 7002 | C5: Broomhill Bank School | D5: 218 | E5: 269 | F5: 100 | G5: 107 | H5: 23 | I5: 23 | J5: 0 | K5: 0 | L5: 13082.9568 | M5: 12678.08634 | N5: 14529.83 | O5: 20470.33208 | P5: 20065.46161 | Q5: 20545.71 | R5: 19642.92947 | S5: 19238.05901 | T5: 19460.6 | U5: 17456.4545 | V5: 17051.58404 | W5: 18083.41 | X5: 24744.83423 | Y5: 24339.96376 | Z5: 24516.99 | AB5: 17319.58895 | AC5: 16521.63878 | AD5: 45.42707456 | AE5: 61.23872607 | AF5: 71.18443813 | AG5: 114.0819614 | AH5: 90.69116189 | AI5: 0 | AJ5: 0 | AK5: 0 | AL5: 11140.893 | AM5: 632.1069985 | AN5: 0 | AO5: 10.685 | AP5: 0 | AQ5: 0 | AR5: 0.292 | AS5: 1 | AT5: 0 | AU5: 1 | AV5: 60199.58072 | AW5: 59779.4 | AX5: 59794.71026 | AY5: 0 | AZ5: 0 | BA5: 0 | BB5: 0 | BC5: 0 | BD5: 0 | BE5: 27770.88847 | BF5: 0 | BG5: 988.6446813 | BH5: 0 | BI5: 11.52251032 | BJ5: 0 | BL5: 10214.06073 | BM5: 16715.52026 | BN5: 14548.54804 | BO5: 21771.91744 | BP5: 17535.54266 | BQ5: 2745.075361 | BR5: 1570.693913 | BS5: 0 | BT5: 789.7866025 | BU5: 0 | BV5: 265.0919767 | BW5: 10305.98727 | BX5: 16865.95994 | BY5: 14679.48497 | BZ5: 21967.8647 | CA5: 17693.36255 | CB5: 2540.795094 | CC5: 2118.942533 | CD5: 53.84496328 | CE5: 1405.632237 | CF5: 221.2385087 | CG5: 927.9236592 | CH5: 14529.83 | CI5: 20545.71 | CJ5: 18684.34614 | CK5: 18083.41 | CL5: 24009.61 | CM5: 59779.4
B6: 7005 | C6: Aspire School | D6: 136 | E6: 172 | F6: 0 | G6: 0 | H6: 0 | I6: 0 | J6: 0 | K6: 0 | L6: 13518.1121 | M6: 13425.01372 | N6: 13384.19 | O6: 20860.22329 | P6: 20767.1249 | Q6: 20660.81 | R6: 20062.27312 | S6: 19969.17474 | T6: 19869.98 | U6: 17865.85243 | V6: 17772.75405 | W6: 17693.15 | X6: 25111.33464 | Y6: 25018.23625 | Z6: 24874.01 | AB6: 17319.58895 | AC6: 16521.63878 | AD6: 0 | AE6: 0 | AF6: 0 | AG6: 0 | AH6: 0 | AI6: 0 | AJ6: 0 | AK6: 0 | AL6: 3227 | AM6: 0 | AN6: 0 | AO6: 1.7432 | AP6: 0 | AQ6: 0 | AR6: 0.3560606061 | AS6: 0 | AT6: 0 | AU6: 0 | AV6: 0 | AW6: 0 | AX6: 0 | AY6: 0 | AZ6: 0 | BA6: 0 | BB6: 0 | BC6: 0 | BD6: 0 | BE6: 0 | BF6: 0 | BG6: 0 | BH6: 0 | BI6: 0 | BJ6: 0 | BL6: 10169.03885 | BM6: 16654.82777 | BN6: 14477.99854 | BO6: 21658.85306 | BP6: 17445.66044 | BQ6: 3215.152589 | BR6: 0 | BS6: 0 | BT6: 0 | BU6: 0 | BV6: 0 | BW6: 10260.5602 | BX6: 16804.72122 | BY6: 14608.30053 | BZ6: 21853.78274 | CA6: 17602.67138 | CB6: 3203.244512 | CC6: 0 | CD6: 0 | CE6: 0 | CF6: 0 | CG6: 0 | CH6: 12851.45331 | CI6: 19848.20484 | CJ6: 19087.78881 | CK6: 16994.68379 | CL6: 23899.35159
B7: 7006 | C7: Snowfields Academy | D7: 120 | E7: 226 | F7: 0 | G7: 12 | H7: 0 | I7: 0 | J7: 0 | K7: 0 | L7: 14649.27561 | M7: 13412.141 | N7: 13399.45 | O7: 21991.38679 | P7: 20754.25219 | Q7: 20676.07 | R7: 21193.43662 | S7: 19956.30202 | T7: 19885.24 | U7: 18997.01594 | V7: 17759.88133 | W7: 17708.41 | X7: 26242.49814 | Y7: 25005.36354 | Z7: 24889.26 | AB7: 17319.58895 | AC7: 16521.63878 | AD7: 0 | AE7: 0 | AF7: 0 | AG7: 0 | AH7: 0 | AI7: 0 | AJ7: 0 | AK7: 0 | AL7: 7642 | AM7: 0 | AN7: 0 | AO7: 7.3 | AP7: 0 | AQ7: 0 | AR7: 0.3216374269 | AS7: 0 | AT7: 0 | AU7: 1 | AV7: 0 | AW7: 0 | AX7: 0 | AY7: 0 | AZ7: 0 | BA7: 0 | BB7: 0 | BC7: 0 | BD7: 0 | BE7: 0 | BF7: 0 | BG7: 0 | BH7: 0 | BI7: 0 | BJ7: 0 | BL7: 10169.03885 | BM7: 16654.82777 | BN7: 14477.99854 | BO7: 21658.85306 | BP7: 17445.66044 | BQ7: 3230.409051 | BR7: 0 | BS7: 0 | BT7: 0 | BU7: 0 | BV7: 0 | BW7: 10260.5602 | BX7: 16804.72122 | BY7: 14608.30053 | BZ7: 21853.78274 | CA7: 17602.67138 | CB7: 3667.053556 | CC7: 0 | CD7: 0 | CE7: 0 | CF7: 0 | CG7: 0 | CH7: 12890.69688 | CI7: 19887.44841 | CJ7: 19127.03238 | CK7: 17033.92736 | CL7: 23938.59516
B8: 7021 | C8: Valence School | D8: 80 | E8: 80 | F8: 30 | G8: 30 | H8: 46 | I8: 46 | J8: 18 | K8: 18 | L8: 17255.0065 | M8: 17222.2703 | N8: 17051.54 | O8: 23932.78981 | P8: 23900.0536 | Q8: 23669.76 | R8: 23851.02974 | S8: 23818.29354 | T8: 23588.73 | U8: 21687.23099 | V8: 21654.49479 | W8: 21444.23 | X8: 29073.41707 | Y8: 29040.68087 | Z8: 28764.54 | AB8: 16521.63878 | AC8: 16521.63878 | AD8: 173.7225821 | AE8: 225.584799 | AF8: 258.2067345 | AG8: 398.9106109 | AH8: 307.3448682 | AI8: 0 | AJ8: 0 | AK8: 0 | AL8: 8799 | AM8: 0 | AN8: 1924 | AO8: 18.322 | AP8: 0 | AQ8: 1 | AR8: 0.2631578947 | AS8: 1 | AT8: 0 | AU8: 0 | AV8: 0 | AW8: 0 | AX8: 0 | AY8: 81182.38995 | AZ8: 80408.71 | BA8: 81149.65375 | BB8: 109339.4689 | BC8: 108314.64 | BD8: 109306.7327 | BE8: 42651.04132 | BF8: 26849.24853 | BG8: 1278.570207 | BH8: 1810.78931 | BI8: 39.38603527 | BJ8: 39.38603527 | BL8: 10341.21187 | BM8: 16878.40041 | BN8: 14733.90215 | BO8: 22054.2055 | BP8: 16959.4312 | BQ8: 6710.331686 | BR8: 0 | BS8: 0 | BT8: 0 | BU8: 0 | BV8: 0 | BW8: 10434.28278 | BX8: 17030.30602 | BY8: 14866.50727 | BZ8: 22252.69335 | CA8: 17112.06608 | CB8: 6801.627604 | CC8: 0 | CD8: 0 | CE8: 0 | CF8: 0 | CG8: 0 | CH8: 16499.29884 | CI8: 22862.97128 | CJ8: 22785.05705 | CK8: 20723.03949 | CL8: 27761.79271 | CN8: 77419.65358 | CO8: 104252.2744
B9: 7032 | C9: Bower Grove School | D9: 225 | E9: 225 | F9: 0 | G9: 0 | H9: 0 | I9: 0 | J9: 0 | K9: 0 | L9: 12976.22101 | M9: 12997.37382 | N9: 12847.95 | O9: 19520.38202 | P9: 19541.53483 | Q9: 19333.73 | R9: 19520.38202 | S9: 19541.53483 | T9: 19333.73 | U9: 17323.96134 | V9: 17345.11415 | W9: 17156.9 | X9: 24569.44354 | Y9: 24590.59635 | Z9: 24337.76 | AB9: 16521.63878 | AC9: 16521.63878 | AD9: 0 | AE9: 0 | AF9: 0 | AG9: 0 | AH9: 0 | AI9: 0 | AJ9: 0 | AK9: 0 | AL9: 4185.3 | AM9: 0 | AN9: 0 | AO9: 2.1496 | AP9: 0 | AQ9: 0 | AR9: 0.594017094 | AS9: 0 | AT9: 1 | AU9: 0 | AV9: 0 | AW9: 0 | AX9: 0 | AY9: 0 | AZ9: 0 | BA9: 0 | BB9: 0 | BC9: 0 | BD9: 0 | BE9: 0 | BF9: 0 | BG9: 0 | BH9: 0 | BI9: 0 | BJ9: 0 | BL9: 10169.03885 | BM9: 16654.82777 | BN9: 14477.99854 | BO9: 21658.85306 | BP9: 16654.82777 | BQ9: 2678.906252 | BR9: 0 | BS9: 0 | BT9: 0 | BU9: 0 | BV9: 0 | BW9: 10260.5602 | BX9: 16804.72122 | BY9: 14608.30053 | BZ9: 21853.78274 | CA9: 16804.72122 | CB9: 2727.999947 | CC9: 0 | CD9: 0 | CE9: 0 | CF9: 0 | CG9: 0 | CH9: 12371.15486 | CI9: 18607.49036 | CJ9: 18607.49036 | CK9: 16514.38534 | CL9: 23419.05314
B10: 7033 | C10: St Anthony's School | D10: 110 | E10: 106 | F10: 0 | G10: 0 | H10: 0 | I10: 0 | J10: 0 | K10: 0 | L10: 15391.89642 | M10: 15586.72451 | N10: 15483.34 | O10: 21936.05744 | P10: 22130.88553 | Q10: 21969.13 | R10: 21936.05744 | S10: 22130.88553 | T10: 21969.13 | U10: 19739.63675 | V10: 19934.46484 | W10: 19792.3 | X10: 26985.11896 | Y10: 27179.94704 | Z10: 26973.15 | AB10: 16521.63878 | AC10: 16521.63878 | AD10: 0 | AE10: 0 | AF10: 0 | AG10: 0 | AH10: 0 | AI10: 0 | AJ10: 0 | AK10: 0 | AL10: 3614 | AM10: 0 | AN10: 0 | AO10: 1.54 | AP10: 0 | AQ10: 0 | AR10: 0.7289719626 | AS10: 0 | AT10: 0 | AU10: 0 | AV10: 0 | AW10: 0 | AX10: 0 | AY10: 0 | AZ10: 0 | BA10: 0 | BB10: 0 | BC10: 0 | BD10: 0 | BE10: 0 | BF10: 0 | BG10: 0 | BH10: 0 | BI10: 0 | BJ10: 0 | BL10: 10169.03885 | BM10: 16654.82777 | BN10: 14477.99854 | BO10: 21658.85306 | BP10: 16654.82777 | BQ10: 5314.299239 | BR10: 0 | BS10: 0 | BT10: 0 | BU10: 0 | BV10: 0 | BW10: 10260.5602 | BX10: 16804.72122 | BY10: 14608.30053 | BZ10: 21853.78274 | CA10: 16804.72122 | CB10: 5244.98594 | CC10: 127.0105888 | CD10: 6.275133545 | CE10: 46.79764676 | CF10: 0 | CG10: 6.275133545 | CH10: 15177.23954 | CI10: 21413.57504 | CJ10: 21413.57504 | CK10: 19320.47002 | CL10: 26225.13782
B11: 7039 | C11: The Ifield School | D11: 220 | E11: 227 | F11: 41 | G11: 39 | H11: 0 | I11: 0 | J11: 0 | K11: 0 | L11: 12904.60416 | M11: 12857.55239 | N11: 12837.48 | O11: 20246.71535 | P11: 20199.66358 | Q11: 20114.1 | R11: 19448.76518 | S11: 19401.71341 | T11: 19323.26 | U11: 17252.34449 | V11: 17205.29273 | W11: 17146.44 | X11: 24497.8267 | Y11: 24450.77493 | Z11: 24327.29 | AB11: 17319.58895 | AC11: 16521.63878 | AD11: 0 | AE11: 0 | AF11: 0 | AG11: 0 | AH11: 0 | AI11: 0 | AJ11: 0 | AK11: 0 | AL11: 4274.139996 | AM11: 0 | AN11: 0 | AO11: 6.22 | AP11: 75000 | AQ11: 1 | AR11: 0.3943661972 | AS11: 0 | AT11: 1 | AU11: 0 | AV11: 0 | AW11: 0 | AX11: 0 | AY11: 0 | AZ11: 0 | BA11: 0 | BB11: 0 | BC11: 0 | BD11: 0 | BE11: 0 | BF11: 0 | BG11: 0 | BH11: 0 | BI11: 0 | BJ11: 0 | BL11: 10169.03885 | BM11: 16654.82777 | BN11: 14477.99854 | BO11: 21658.85306 | BP11: 17445.66044 | BQ11: 2668.436469 | BR11: 0 | BS11: 0 | BT11: 0 | BU11: 0 | BV11: 0 | BW11: 10260.5602 | BX11: 16804.72122 | BY11: 14608.30053 | BZ11: 21853.78274 | CA11: 17602.67138 | CB11: 2616.597097 | CC11: 0 | CD11: 0 | CE11: 0 | CF11: 0 | CG11: 0 | CH11: 12333.0633 | CI11: 19329.81484 | CJ11: 18569.3988 | CK11: 16476.29378 | CL11: 23380.96158
B12: 7040 | C12: Foreland Fields School | D12: 209 | E12: 213 | F12: 33 | G12: 30 | H12: 0 | I12: 0 | J12: 0 | K12: 0 | L12: 13124.53908 | M12: 13111.34835 | N12: 12900.34 | O12: 20466.65026 | P12: 20453.45954 | Q12: 20176.97 | R12: 19668.70009 | S12: 19655.50937 | T12: 19386.13 | U12: 17472.27941 | V12: 17459.08869 | W12: 17209.3 | X12: 24717.76161 | Y12: 24704.57089 | Z12: 24390.16 | AB12: 17319.58895 | AC12: 16521.63878 | AD12: 0 | AE12: 0 | AF12: 0 | AG12: 0 | AH12: 0 | AI12: 0 | AJ12: 0 | AK12: 0 | AL12: 4490.5 | AM12: 0 | AN12: 0 | AO12: 4.4853 | AP12: 63000 | AQ12: 1 | AR12: 0.465 | AS12: 0 | AT12: 2 | AU12: 0 | AV12: 0 | AW12: 0 | AX12: 0 | AY12: 0 | AZ12: 0 | BA12: 0 | BB12: 0 | BC12: 0 | BD12: 0 | BE12: 0 | BF12: 0 | BG12: 0 | BH12: 0 | BI12: 0 | BJ12: 0 | BL12: 10169.03885 | BM12: 16654.82777 | BN12: 14477.99854 | BO12: 21658.85306 | BP12: 17445.66044 | BQ12: 2731.305202 | BR12: 0 | BS12: 0 | BT12: 0 | BU12: 0 | BV12: 0 | BW12: 10260.5602 | BX12: 16804.72122 | BY12: 14608.30053 | BZ12: 21853.78274 | CA12: 17602.67138 | CB12: 2856.28429 | CC12: 0 | CD12: 0 | CE12: 0 | CF12: 0 | CG12: 0 | CH12: 12371.27587 | CI12: 19368.0274 | CJ12: 18607.61136 | CK12: 16514.50634 | CL12: 23419.17414
B13: 7041 | C13: Goldwyn School | D13: 150 | E13: 160 | F13: 45 | G13: 35 | H13: 0 | I13: 0 | J13: 0 | K13: 0 | L13: 14116.96934 | M13: 14133.60069 | N13: 14106.03 | O13: 20661.13036 | P13: 20677.76171 | Q13: 20522.38 | R13: 20661.13036 | S13: 20677.76171 | T13: 20522.38 | U13: 18464.70967 | V13: 18481.34103 | W13: 18345.55 | X13: 25710.19188 | Y13: 25726.82323 | Z13: 25526.4 | AB13: 16521.63878 | AC13: 16521.63878 | AD13: 0 | AE13: 0 | AF13: 0 | AG13: 0 | AH13: 0 | AI13: 0 | AJ13: 0 | AK13: 0 | AL13: 5856.38009 | AM13: 0 | AN13: 0 | AO13: 7.3492 | AP13: 47900 | AQ13: 0 | AR13: 0.4759036145 | AS13: 0 | AT13: 2 | AU13: 1 | AV13: 0 | AW13: 0 | AX13: 0 | AY13: 0 | AZ13: 0 | BA13: 0 | BB13: 0 | BC13: 0 | BD13: 0 | BE13: 0 | BF13: 0 | BG13: 0 | BH13: 0 | BI13: 0 | BJ13: 0 | BL13: 10169.03885 | BM13: 16654.82777 | BN13: 14477.99854 | BO13: 21658.85306 | BP13: 16654.82777 | BQ13: 3867.551093 | BR13: 69.44005887 | BS13: 0 | BT13: 0 | BU13: 0 | BV13: 0 | BW13: 10260.5602 | BX13: 16804.72122 | BY13: 14608.30053 | BZ13: 21853.78274 | CA13: 16804.72122 | CB13: 3866.110765 | CC13: 402.5399369 | CD13: 0 | CE13: 0 | CF13: 0 | CG13: 0 | CH13: 14106.03 | CI13: 20001.57682 | CJ13: 20001.57682 | CK13: 17908.4718 | CL13: 24813.1396
B14: 7043 | C14: The Beacon Folkestone | D14: 329 | E14: 278 | F14: 73 | G14: 130 | H14: 0 | I14: 0 | J14: 0 | K14: 0 | L14: 12371.70429 | M14: 12345.35901 | N14: 12252.69 | O14: 19713.81548 | P14: 19687.47019 | Q14: 19529.31 | R14: 18915.86531 | S14: 18889.52003 | T14: 18738.47 | U14: 16719.44462 | V14: 16693.09934 | W14: 16561.64 | X14: 23964.92683 | Y14: 23938.58154 | Z14: 23742.5 | AB14: 17319.58895 | AC14: 16521.63878 | AD14: 0 | AE14: 0 | AF14: 0 | AG14: 0 | AH14: 0 | AI14: 0 | AJ14: 0 | AK14: 0 | AL14: 8748 | AM14: 0 | AN14: 0 | AO14: 2.4561 | AP14: 0 | AQ14: 1 | AR14: 0.5203761755 | AS14: 0 | AT14: 0 | AU14: 1 | AV14: 0 | AW14: 0 | AX14: 0 | AY14: 0 | AZ14: 0 | BA14: 0 | BB14: 0 | BC14: 0 | BD14: 0 | BE14: 0 | BF14: 0 | BG14: 0 | BH14: 0 | BI14: 0 | BJ14: 0 | BL14: 10169.03885 | BM14: 16654.82777 | BN14: 14477.99854 | BO14: 21658.85306 | BP14: 17445.66044 | BQ14: 2083.646297 | BR14: 0 | BS14: 0 | BT14: 0 | BU14: 0 | BV14: 0 | BW14: 10260.5602 | BX14: 16804.72122 | BY14: 14608.30053 | BZ14: 21853.78274 | CA14: 17602.67138 | CB14: 2095.77601 | CC14: 0 | CD14: 0 | CE14: 0 | CF14: 0 | CG14: 0 | CH14: 11771.35 | CI14: 18650.84374 | CJ14: 17890.4277 | CK14: 15797.32268 | CL14: 22701.99048
B15: 7044 | C15: Rowhill School | D15: 132 | E15: 132 | F15: 0 | G15: 0 | H15: 0 | I15: 0 | J15: 0 | K15: 0 | L15: 14884.93986 | M15: 14888.71622 | N15: 14744.01 | O15: 21562.72317 | P15: 21566.49952 | Q15: 21362.23 | R15: 21489.40571 | S15: 21493.18207 | T15: 21289.57 | U15: 19317.16435 | V15: 19320.9407 | W15: 19136.7 | X15: 26703.35043 | Y15: 26707.12678 | Z15: 26457.01 | AB15: 16521.63878 | AC15: 16521.63878 | AD15: 173.7225821 | AE15: 234.0274148 | AF15: 258.2067345 | AG15: 398.9106109 | AH15: 307.3448682 | AI15: 0 | AJ15: 0 | AK15: 0 | AL15: 4165 | AM15: 0 | AN15: 0 | AO15: 1.8948 | AP15: 0 | AQ15: 0 | AR15: 0.5866666667 | AS15: 1 | AT15: 0 | AU15: 0 | AV15: 0 | AW15: 0 | AX15: 0 | AY15: 0 | AZ15: 0 | BA15: 0 | BB15: 0 | BC15: 0 | BD15: 0 | BE15: 0 | BF15: 0 | BG15: 0 | BH15: 0 | BI15: 0 | BJ15: 0 | BL15: 10341.21187 | BM15: 16886.76772 | BN15: 14733.90215 | BO15: 22054.2055 | BP15: 16959.4312 | BQ15: 4402.802274 | BR15: 0 | BS15: 0 | BT15: 0 | BU15: 0 | BV15: 0 | BW15: 10434.28278 | BX15: 17038.74863 | BY15: 14866.50727 | BZ15: 22252.69335 | CA15: 17112.06608 | CB15: 4452.859957 | CC15: 85.04026313 | CD15: 0 | CE15: 0 | CF15: 0 | CG15: 0 | CH15: 14536.1 | CI15: 20863.34655 | CJ15: 20793.47782 | CK15: 18723.41477 | CL15: 25762.16799
B16: 7045 | C16: Elms School | D16: 158 | E16: 152 | F16: 0 | G16: 0 | H16: 0 | I16: 0 | J16: 0 | K16: 0 | L16: 13800.96214 | M16: 13931.58019 | N16: 13666.89 | O16: 20345.12316 | P16: 20475.74121 | Q16: 20152.68 | R16: 20345.12316 | S16: 20475.74121 | T16: 20152.68 | U16: 18148.70248 | V16: 18279.32053 | W16: 17975.85 | X16: 25394.18468 | Y16: 25524.80273 | Z16: 25156.71 | AB16: 16521.63878 | AC16: 16521.63878 | AD16: 0 | AE16: 0 | AF16: 0 | AG16: 0 | AH16: 0 | AI16: 0 | AJ16: 0 | AK16: 0 | AL16: 2771 | AM16: 0 | AN16: 0 | AO16: 2.13 | AP16: 0 | AQ16: 0 | AR16: 0.8066666667 | AS16: 0 | AT16: 0 | AU16: 0 | AV16: 0 | AW16: 0 | AX16: 0 | AY16: 0 | AZ16: 0 | BA16: 0 | BB16: 0 | BC16: 0 | BD16: 0 | BE16: 0 | BF16: 0 | BG16: 0 | BH16: 0 | BI16: 0 | BJ16: 0 | BL16: 10169.03885 | BM16: 16654.82777 | BN16: 14477.99854 | BO16: 21658.85306 | BP16: 16654.82777 | BQ16: 3497.85362 | BR16: 0 | BS16: 0 | BT16: 0 | BU16: 0 | BV16: 0 | BW16: 10260.5602 | BX16: 16804.72122 | BY16: 14608.30053 | BZ16: 21853.78274 | CA16: 16804.72122 | CB16: 3616.595808 | CC16: 0 | CD16: 0 | CE16: 0 | CF16: 0 | CG16: 0 | CH16: 13117.92857 | CI16: 19354.26407 | CJ16: 19354.26407 | CK16: 17261.15905 | CL16: 24165.82685
B17: 7051 | C17: Nexus School | D17: 246 | E17: 256 | F17: 30 | G17: 39 | H17: 0 | I17: 0 | J17: 0 | K17: 0 | L17: 12952.89099 | M17: 12797.82902 | N17: 12911.72 | O17: 20295.00217 | P17: 20139.9402 | Q17: 20188.34 | R17: 19497.05201 | S17: 19341.99003 | T17: 19397.51 | U17: 17300.63132 | V17: 17145.56935 | W17: 17220.68 | X17: 24546.11352 | Y17: 24391.05155 | Z17: 24401.54 | AB17: 17319.58895 | AC17: 16521.63878 | AD17: 0 | AE17: 0 | AF17: 0 | AG17: 0 | AH17: 0 | AI17: 0 | AJ17: 0 | AK17: 0 | AL17: 7075.8 | AM17: 0 | AN17: 0 | AO17: 2.36 | AP17: 0 | AQ17: 1 | AR17: 0.3883495146 | AS17: 0 | AT17: 0 | AU17: 1 | AV17: 0 | AW17: 0 | AX17: 0 | AY17: 0 | AZ17: 0 | BA17: 0 | BB17: 0 | BC17: 0 | BD17: 0 | BE17: 0 | BF17: 0 | BG17: 0 | BH17: 0 | BI17: 0 | BJ17: 0 | BL17: 10169.03885 | BM17: 16654.82777 | BN17: 14477.99854 | BO17: 21658.85306 | BP17: 17445.66044 | BQ17: 2742.682118 | BR17: 0 | BS17: 0 | BT17: 0 | BU17: 0 | BV17: 0 | BW17: 10260.5602 | BX17: 16804.72122 | BY17: 14608.30053 | BZ17: 21853.78274 | CA17: 17602.67138 | CB17: 2601.877972 | CC17: 293.83423 | CD17: 37.29841983 | CE17: 77.82093305 | CF17: 0 | CG17: 22.57676544 | CH17: 12773.08 | CI17: 19637.98653 | CJ17: 18877.57049 | CK17: 16784.46547 | CL17: 23689.13327
B18: 7052 | C18: Grange Park School | D18: 91 | E18: 95 | F18: 53 | G18: 60 | H18: 0 | I18: 0 | J18: 0 | K18: 0 | L18: 13693.73626 | M18: 13491.82329 | N18: 13560.94 | O18: 21035.84744 | P18: 20833.93448 | Q18: 20837.57 | R18: 20237.89728 | S18: 20035.98431 | T18: 20046.73 | U18: 18041.47659 | V18: 17839.56363 | W18: 17869.9 | X18: 25286.9588 | Y18: 25085.04583 | Z18: 25050.76 | AB18: 17319.58895 | AC18: 16521.63878 | AD18: 0 | AE18: 0 | AF18: 0 | AG18: 0 | AH18: 0 | AI18: 0 | AJ18: 0 | AK18: 0 | AL18: 1958.53 | AM18: 0 | AN18: 0 | AO18: 1.1245 | AP18: 0 | AQ18: 0 | AR18: 0.396039604 | AS18: 0 | AT18: 0 | AU18: 0 | AV18: 0 | AW18: 0 | AX18: 0 | AY18: 0 | AZ18: 0 | BA18: 0 | BB18: 0 | BC18: 0 | BD18: 0 | BE18: 0 | BF18: 0 | BG18: 0 | BH18: 0 | BI18: 0 | BJ18: 0 | BL18: 10169.03885 | BM18: 16654.82777 | BN18: 14477.99854 | BO18: 21658.85306 | BP18: 17445.66044 | BQ18: 3391.905099 | BR18: 0 | BS18: 0 | BT18: 0 | BU18: 0 | BV18: 0 | BW18: 10260.5602 | BX18: 16804.72122 | BY18: 14608.30053 | BZ18: 21853.78274 | CA18: 17602.67138 | CB18: 3315.393498 | CC18: 0 | CD18: 0 | CE18: 0 | CF18: 0 | CG18: 0 | CH18: 12971.03378 | CI18: 19967.78531 | CJ18: 19207.36928 | CK18: 17114.26426 | CL18: 24018.93206
B19: 7056 | C19: Five Acre Wood School | D19: 542 | E19: 648 | F19: 59 | G19: 77 | H19: 0 | I19: 0 | J19: 0 | K19: 0 | L19: 11758.11902 | M19: 11564.60543 | N19: 11603.02 | O19: 19100.23021 | P19: 18906.71662 | Q19: 18879.64 | R19: 18302.28004 | S19: 18108.76645 | T19: 18088.81 | U19: 16105.85935 | V19: 15912.34576 | W19: 15911.98 | X19: 23351.34156 | Y19: 23157.82797 | Z19: 23092.83 | AB19: 17319.58895 | AC19: 16521.63878 | AD19: 0 | AE19: 0 | AF19: 0 | AG19: 0 | AH19: 0 | AI19: 0 | AJ19: 0 | AK19: 0 | AL19: 10386.17 | AM19: 0 | AN19: 0 | AO19: 2.6382 | AP19: 9259 | AQ19: 1 | AR19: 0.3673469388 | AS19: 0 | AT19: 1 | AU19: 1 | AV19: 0 | AW19: 0 | AX19: 0 | AY19: 0 | AZ19: 0 | BA19: 0 | BB19: 0 | BC19: 0 | BD19: 0 | BE19: 0 | BF19: 0 | BG19: 0 | BH19: 0 | BI19: 0 | BJ19: 0 | BL19: 10169.03885 | BM19: 16654.82777 | BN19: 14477.99854 | BO19: 21658.85306 | BP19: 17445.66044 | BQ19: 1433.9805 | BR19: 0 | BS19: 0 | BT19: 0 | BU19: 0 | BV19: 0 | BW19: 10260.5602 | BX19: 16804.72122 | BY19: 14608.30053 | BZ19: 21853.78274 | CA19: 17602.67138 | CB19: 1384.675893 | CC19: 0 | CD19: 0 | CE19: 0 | CF19: 0 | CG19: 0 | CH19: 11254.39 | CI19: 18211.29649 | CJ19: 17450.88046 | CK19: 15357.77544 | CL19: 22262.44324
B20: 7058 | C20: Stone Bay School | D20: 90 | E20: 92 | F20: 10 | G20: 11 | H20: 10 | I20: 10 | J20: 0 | K20: 0 | L20: 15436.17288 | M20: 15301.46421 | N20: 16536.41 | O20: 29959.83558 | P20: 29825.12692 | Q20: 29901.29 | R20: 21980.33389 | S20: 21845.62523 | T20: 21992.97 | U20: 19783.91321 | V20: 19649.20455 | W20: 20404.25 | X20: 27029.39541 | Y20: 26894.68675 | Z20: 26996.99 | AB20: 24501.14046 | AC20: 16521.63878 | AD20: 0 | AE20: 0 | AF20: 0 | AG20: 0 | AH20: 0 | AI20: 0 | AJ20: 0 | AK20: 0 | AL20: 2396.216342 | AM20: 1481.783658 | AN20: 0 | AO20: 0.96 | AP20: 0 | AQ20: 1 | AR20: 0.5581395349 | AS20: 0 | AT20: 0 | AU20: 0 | AV20: 92120.45494 | AW20: 86607.43 | AX20: 91985.74628 | AY20: 89190.01477 | AZ20: 83703.13 | BA20: 89055.30611 | BB20: 0 | BC20: 0 | BD20: 0 | BE20: 33933.59232 | BF20: 0 | BG20: 0 | BH20: 0 | BI20: 0 | BJ20: 0 | BL20: 10169.03885 | BM20: 16654.82777 | BN20: 14477.99854 | BO20: 21658.85306 | BP20: 24563.15451 | BQ20: 5338.139111 | BR20: 1029.232041 | BS20: 0 | BT20: 588.1123454 | BU20: 0 | BV20: 0 | BW20: 10260.5602 | BX20: 16804.72122 | BY20: 14608.30053 | BZ20: 21853.78274 | CA20: 24784.2229 | CB20: 5097.032626 | CC20: 1674.909477 | CD20: 436.320355 | CE20: 1311.044344 | CF20: 705.323239 | CG20: 567.4808754 | CH20: 16536.41 | CI20: 29561.88 | CJ20: 21687.45068 | CK20: 20404.25 | CL20: 26850.62 | CM20: 77220.55298 | CN20: 74427.95544
B21: 7062 | C21: The Orchard School | D21: 93 | E21: 100 | F21: 0 | G21: 0 | H21: 0 | I21: 0 | J21: 0 | K21: 0 | L21: 15845.77406 | M21: 15496.60703 | N21: 15894.82 | O21: 22389.93507 | P21: 22040.76804 | Q21: 22380.61 | R21: 22389.93507 | S21: 22040.76804 | T21: 22380.61 | U21: 20193.51439 | V21: 19844.34736 | W21: 20203.78 | X21: 27438.99659 | Y21: 27089.82956 | Z21: 27384.63 | AB21: 16521.63878 | AC21: 16521.63878 | AD21: 0 | AE21: 0 | AF21: 0 | AG21: 0 | AH21: 0 | AI21: 0 | AJ21: 0 | AK21: 0 | AL21: 2505 | AM21: 0 | AN21: 0 | AO21: 1.81 | AP21: 0 | AQ21: 0 | AR21: 0.6893203883 | AS21: 0 | AT21: 0 | AU21: 0 | AV21: 0 | AW21: 0 | AX21: 0 | AY21: 0 | AZ21: 0 | BA21: 0 | BB21: 0 | BC21: 0 | BD21: 0 | BE21: 0 | BF21: 0 | BG21: 0 | BH21: 0 | BI21: 0 | BJ21: 0 | BL21: 10169.03885 | BM21: 16654.82777 | BN21: 14477.99854 | BO21: 21658.85306 | BP21: 16654.82777 | BQ21: 5725.781209 | BR21: 0 | BS21: 0 | BT21: 0 | BU21: 0 | BV21: 0 | BW21: 10260.5602 | BX21: 16804.72122 | BY21: 14608.30053 | BZ21: 21853.78274 | CA21: 16804.72122 | CB21: 5381.533091 | CC21: 402.3399091 | CD21: 281.6044538 | CE21: 322.126967 | CF21: 188.4525984 | CG21: 281.6044538 | CH21: 15577.11961 | CI21: 21813.45511 | CJ21: 21813.45511 | CK21: 19720.35009 | CL21: 26625.01789
B22: 7063 | C22: St Nicholas' School | D22: 296 | E22: 311 | F22: 44 | G22: 44 | H22: 0 | I22: 0 | J22: 0 | K22: 0 | L22: 12872.14032 | M22: 12784.81907 | N22: 12848.21 | O22: 20214.2515 | P22: 20126.93026 | Q22: 20124.83 | R22: 19416.30133 | S22: 19328.98009 | T22: 19334 | U22: 17219.88065 | V22: 17132.5594 | W22: 17157.17 | X22: 24465.36285 | Y22: 24378.04161 | Z22: 24338.02 | AB22: 17319.58895 | AC22: 16521.63878 | AD22: 0 | AE22: 0 | AF22: 0 | AG22: 0 | AH22: 0 | AI22: 0 | AJ22: 0 | AK22: 0 | AL22: 3971.77001 | AM22: 0 | AN22: 0 | AO22: 0.9305 | AP22: 122554 | AQ22: 1 | AR22: 0.4163822526 | AS22: 0 | AT22: 6 | AU22: 3 | AV22: 0 | AW22: 0 | AX22: 0 | AY22: 0 | AZ22: 0 | BA22: 0 | BB22: 0 | BC22: 0 | BD22: 0 | BE22: 0 | BF22: 0 | BG22: 0 | BH22: 0 | BI22: 0 | BJ22: 0 | BL22: 10169.03885 | BM22: 16654.82777 | BN22: 14477.99854 | BO22: 21658.85306 | BP22: 17445.66044 | BQ22: 2679.167615 | BR22: 0 | BS22: 0 | BT22: 0 | BU22: 0 | BV22: 0 | BW22: 10260.5602 | BX22: 16804.72122 | BY22: 14608.30053 | BZ22: 21853.78274 | CA22: 17602.67138 | CB22: 2560.642726 | CC22: 110.3673317 | CD22: 0 | CE22: 30.15438962 | CF22: 0 | CG22: 0 | CH22: 12554.92258 | CI22: 19551.67411 | CJ22: 18791.25808 | CK22: 16698.15305 | CL22: 23602.82086
B23: 7066 | C23: Milestone Academy | D23: 326 | E23: 326 | F23: 37 | G23: 37 | H23: 0 | I23: 0 | J23: 0 | K23: 0 | L23: 12756.18774 | M23: 12760.128 | N23: 12700.22 | O23: 20246.76513 | P23: 20250.7054 | Q23: 20123.98 | R23: 19352.21097 | S23: 19356.15124 | T23: 19237.41 | U23: 17188.41222 | V23: 17192.35249 | W23: 17092.91 | X23: 24574.5983 | Y23: 24578.53857 | Z23: 24413.22 | AB23: 17319.58895 | AC23: 16521.63878 | AD23: 174.1087197 | AE23: 225.9709366 | AF23: 258.5928721 | AG23: 399.2967485 | AH23: 322.5749261 | AI23: 0 | AJ23: 0 | AK23: 0 | AL23: 7151 | AM23: 0 | AN23: 0 | AO23: 4.6769 | AP23: 0 | AQ23: 1 | AR23: 0.3135313531 | AS23: 1 | AT23: 0 | AU23: 3 | AV23: 0 | AW23: 0 | AX23: 0 | AY23: 0 | AZ23: 0 | BA23: 0 | BB23: 0 | BC23: 0 | BD23: 0 | BE23: 0 | BF23: 0 | BG23: 0 | BH23: 0 | BI23: 0 | BJ23: 0 | BL23: 10341.59457 | BM23: 16878.7831 | BN23: 14734.28484 | BO23: 22054.58819 | BP23: 17765.35809 | BQ23: 2358.626888 | BR23: 0 | BS23: 0 | BT23: 0 | BU23: 0 | BV23: 0 | BW23: 10434.66892 | BX23: 17030.69215 | BY23: 14866.8934 | BZ23: 22253.07948 | CA23: 17925.24631 | CB23: 2323.817309 | CC23: 0 | CD23: 0 | CE23: 0 | CF23: 0 | CG23: 0 | CH23: 12290.98098 | CI23: 19429.21514 | CJ23: 18576.73919 | CK23: 16514.72163 | CL23: 23553.47485
B24: 7067 | C24: Portal House School | D24: 80 | E24: 80 | F24: 0 | G24: 0 | H24: 0 | I24: 0 | J24: 0 | K24: 0 | L24: 17142.27634 | M24: 17193.66534 | N24: 16963.97 | O24: 23686.43735 | P24: 23737.82636 | Q24: 23449.76 | R24: 23686.43735 | S24: 23737.82636 | T24: 23449.76 | U24: 21490.01667 | V24: 21541.40567 | W24: 21272.93 | X24: 28735.49887 | Y24: 28786.88788 | Z24: 28453.78 | AB24: 16521.63878 | AC24: 16521.63878 | AD24: 0 | AE24: 0 | AF24: 0 | AG24: 0 | AH24: 0 | AI24: 0 | AJ24: 0 | AK24: 0 | AL24: 3816 | AM24: 0 | AN24: 0 | AO24: 0.81 | AP24: 0 | AQ24: 0 | AR24: 0.5405405405 | AS24: 0 | AT24: 0 | AU24: 0 | AV24: 0 | AW24: 0 | AX24: 0 | AY24: 0 | AZ24: 0 | BA24: 0 | BB24: 0 | BC24: 0 | BD24: 0 | BE24: 0 | BF24: 0 | BG24: 0 | BH24: 0 | BI24: 0 | BJ24: 0 | BL24: 10169.03885 | BM24: 16654.82777 | BN24: 14477.99854 | BO24: 21658.85306 | BP24: 16654.82777 | BQ24: 6794.929596 | BR24: 0 | BS24: 0 | BT24: 0 | BU24: 0 | BV24: 0 | BW24: 10260.5602 | BX24: 16804.72122 | BY24: 14608.30053 | BZ24: 21853.78274 | CA24: 16804.72122 | CB24: 6911.693058 | CC24: 0 | CD24: 0 | CE24: 0 | CF24: 0 | CG24: 0 | CH24: 16589.67 | CI24: 22510.5315 | CJ24: 22510.5315 | CK24: 20417.42648 | CL24: 27322.09428
B25: 7069 | C25: The Wyvern School | D25: 297 | E25: 303 | F25: 33 | G25: 47 | H25: 0 | I25: 0 | J25: 0 | K25: 0 | L25: 12380.57073 | M25: 12257.11984 | N25: 12375.1 | O25: 19722.68192 | P25: 19599.23103 | Q25: 19651.72 | R25: 18924.73175 | S25: 18801.28086 | T25: 18860.89 | U25: 16728.31107 | V25: 16604.86018 | W25: 16684.06 | X25: 23973.79327 | Y25: 23850.34238 | Z25: 23864.91 | AB25: 17319.58895 | AC25: 16521.63878 | AD25: 0 | AE25: 0 | AF25: 0 | AG25: 0 | AH25: 0 | AI25: 0 | AJ25: 0 | AK25: 0 | AL25: 6156 | AM25: 0 | AN25: 0 | AO25: 7.6 | AP25: 0 | AQ25: 1 | AR25: 0.3490909091 | AS25: 0 | AT25: 3 | AU25: 0 | AV25: 0 | AW25: 0 | AX25: 0 | AY25: 0 | AZ25: 0 | BA25: 0 | BB25: 0 | BC25: 0 | BD25: 0 | BE25: 0 | BF25: 0 | BG25: 0 | BH25: 0 | BI25: 0 | BJ25: 0 | BL25: 10169.03885 | BM25: 16654.82777 | BN25: 14477.99854 | BO25: 21658.85306 | BP25: 17445.66044 | BQ25: 2206.05977 | BR25: 0 | BS25: 0 | BT25: 0 | BU25: 0 | BV25: 0 | BW25: 10260.5602 | BX25: 16804.72122 | BY25: 14608.30053 | BZ25: 21853.78274 | CA25: 17602.67138 | CB25: 2047.997517 | CC25: 72.02411489 | CD25: 8.171266693 | CE25: 27.76195207 | CF25: 0 | CG25: 1.051098413 | CH25: 12019.98236 | CI25: 19016.73389 | CJ25: 18256.31786 | CK25: 16163.21284 | CL25: 23067.88064
B26: 7070 | C26: Oakley School | D26: 170 | E26: 152 | F26: 42 | G26: 60 | H26: 0 | I26: 0 | J26: 0 | K26: 0 | L26: 13279.76948 | M26: 13294.43675 | N26: 13160.15 | O26: 20621.88066 | P26: 20636.54794 | Q26: 20436.77 | R26: 19823.93049 | S26: 19838.59777 | T26: 19645.94 | U26: 17627.50981 | V26: 17642.17708 | W26: 17469.11 | X26: 24872.99201 | Y26: 24887.65929 | Z26: 24649.96 | AB26: 17319.58895 | AC26: 16521.63878 | AD26: 0 | AE26: 0 | AF26: 0 | AG26: 0 | AH26: 0 | AI26: 0 | AJ26: 0 | AK26: 0 | AL26: 4287 | AM26: 0 | AN26: 0 | AO26: 11.4161 | AP26: 0 | AQ26: 0 | AR26: 0.375 | AS26: 0 | AT26: 0 | AU26: 1 | AV26: 0 | AW26: 0 | AX26: 0 | AY26: 0 | AZ26: 0 | BA26: 0 | BB26: 0 | BC26: 0 | BD26: 0 | BE26: 0 | BF26: 0 | BG26: 0 | BH26: 0 | BI26: 0 | BJ26: 0 | BL26: 10169.03885 | BM26: 16654.82777 | BN26: 14477.99854 | BO26: 21658.85306 | BP26: 17445.66044 | BQ26: 2991.111717 | BR26: 0 | BS26: 0 | BT26: 0 | BU26: 0 | BV26: 0 | BW26: 10260.5602 | BX26: 16804.72122 | BY26: 14608.30053 | BZ26: 21853.78274 | CA26: 17602.67138 | CB26: 3027.765188 | CC26: 0 | CD26: 0 | CE26: 0 | CF26: 0 | CG26: 0 | CH26: 12466.70932 | CI26: 19463.46085 | CJ26: 18703.04481 | CK26: 16609.93979 | CL26: 23514.6076
B27: 7072 | C27: Meadowfield School | D27: 310 | E27: 346 | F27: 41 | G27: 45 | H27: 0 | I27: 0 | J27: 0 | K27: 0 | L27: 12563.06671 | M27: 12342.03318 | N27: 12303.93 | O27: 19905.17789 | P27: 19684.14437 | Q27: 19580.55 | R27: 19107.22773 | S27: 18886.1942 | T27: 18789.72 | U27: 16910.80704 | V27: 16689.77351 | W27: 16612.89 | X27: 24156.28925 | Y27: 23935.25572 | Z27: 23793.74 | AB27: 17319.58895 | AC27: 16521.63878 | AD27: 0 | AE27: 0 | AF27: 0 | AG27: 0 | AH27: 0 | AI27: 0 | AJ27: 0 | AK27: 0 | AL27: 8934.58 | AM27: 0 | AN27: 0 | AO27: 2.563 | AP27: 13000 | AQ27: 1 | AR27: 0.4179566563 | AS27: 0 | AT27: 2 | AU27: 0 | AV27: 0 | AW27: 0 | AX27: 0 | AY27: 0 | AZ27: 0 | BA27: 0 | BB27: 0 | BC27: 0 | BD27: 0 | BE27: 0 | BF27: 0 | BG27: 0 | BH27: 0 | BI27: 0 | BJ27: 0 | BL27: 10169.03885 | BM27: 16654.82777 | BN27: 14477.99854 | BO27: 21658.85306 | BP27: 17445.66044 | BQ27: 2134.890325 | BR27: 0 | BS27: 0 | BT27: 0 | BU27: 0 | BV27: 0 | BW27: 10260.5602 | BX27: 16804.72122 | BY27: 14608.30053 | BZ27: 21853.78274 | CA27: 17602.67138 | CB27: 2173.570285 | CC27: 0 | CD27: 0 | CE27: 0 | CF27: 0 | CG27: 0 | CH27: 11745.21611 | CI27: 18741.96764 | CJ27: 17981.55161 | CK27: 15888.44658 | CL27: 22793.11439
B28: 7073 | C28: Laleham Gap School | D28: 187 | E28: 192 | F28: 9 | G28: 15 | H28: 0 | I28: 0 | J28: 0 | K28: 0 | L28: 13347.4732 | M28: 13169.76643 | N28: 13221.34 | O28: 20689.58439 | P28: 20511.87762 | Q28: 20497.96 | R28: 19891.63422 | S28: 19713.92745 | T28: 19707.13 | U28: 17695.21353 | V28: 17517.50676 | W28: 17530.3 | X28: 24940.69574 | Y28: 24762.98897 | Z28: 24711.16 | AB28: 17319.58895 | AC28: 16521.63878 | AD28: 0 | AE28: 0 | AF28: 0 | AG28: 0 | AH28: 0 | AI28: 0 | AJ28: 0 | AK28: 0 | AL28: 4885 | AM28: 0 | AN28: 0 | AO28: 2.5697 | AP28: 0 | AQ28: 0 | AR28: 0.3065326633 | AS28: 0 | AT28: 0 | AU28: 0 | AV28: 0 | AW28: 0 | AX28: 0 | AY28: 0 | AZ28: 0 | BA28: 0 | BB28: 0 | BC28: 0 | BD28: 0 | BE28: 0 | BF28: 0 | BG28: 0 | BH28: 0 | BI28: 0 | BJ28: 0 | BL28: 10169.03885 | BM28: 16654.82777 | BN28: 14477.99854 | BO28: 21658.85306 | BP28: 17445.66044 | BQ28: 3052.30281 | BR28: 0 | BS28: 0 | BT28: 0 | BU28: 0 | BV28: 0 | BW28: 10260.5602 | BX28: 16804.72122 | BY28: 14608.30053 | BZ28: 21853.78274 | CA28: 17602.67138 | CB28: 2983.25072 | CC28: 0 | CD28: 0 | CE28: 0 | CF28: 0 | CG28: 0 | CH28: 12720.26218 | CI28: 19717.01371 | CJ28: 18956.59768 | CK28: 16863.49266 | CL28: 23768.16046

Sheet Firing Range (hidden)
A1: =COUNTIF(B1:AT1,">0")-22 -> 4 | C1: 7032 | D1: =COUNTIF(D2:D108,">0") -> 16 | E1: 7033 | F1: =COUNTIF(F2:F108,">0") -> 0 | G1: 7044 | H1: =COUNTIF(H2:H108,">0") -> 0 | I1: 7045 | J1: =COUNTIF(J2:J108,">0") -> 0 | K1: 7062 | L1: =COUNTIF(L2:L108,">0") -> 0 | M1: 7041 | N1: =COUNTIF(N2:N108,">0") -> 0 | O1: 7067 | P1: =COUNTIF(P2:P108,">0") -> 0 | Q1: 7021 | R1: =COUNTIF(R2:R108,">0") -> 0 | S1: 7002 | T1: =COUNTIF(T2:T108,">0") -> 1 | U1: 7052 | V1: =COUNTIF(V2:V108,">0") -> 0 | W1: 7058 | X1: =COUNTIF(X2:X108,">0") -> 0 | Y1: 7073 | Z1: =COUNTIF(Z2:Z108,">0") -> 16 | AA1: 7039 | AB1: =COUNTIF(AB2:AB108,">0") -> 0 | AC1: 7040 | AD1: =COUNTIF(AD2:AD108,">0") -> 0 | AE1: 7043 | AF1: =COUNTIF(AF2:AF108,">0") -> 0 | AG1: 7051 | AH1: =COUNTIF(AH2:AH108,">0") -> 0 | AI1: 7056 | AJ1: =COUNTIF(AJ2:AJ108,">0") -> 0 | AK1: 7063 | AL1: =COUNTIF(AL2:AL108,">0") -> 0 | AM1: 7066 | AN1: =COUNTIF(AN2:AN108,">0") -> 0 | AO1: 7069 | AP1: =COUNTIF(AP2:AP108,">0") -> 3 | AQ1: 7070 | AR1: =COUNTIF(AR2:AR108,">0") -> 0 | AS1: 7072 | AT1: =COUNTIF(AT2:AT108,">0") -> 0 | AU1: 7005 | AV1: =COUNTIF(AV2:AV108,">0") -> 0 | AW1: 7006 | AX1: =COUNTIF(AX2:AX108,">0") -> 17
A2: DFENUM | B2: ='Special Rates 2023-24'!DFENUM -> 0 | C2: 7032 | D2: =IF(C2=C1,0,1) -> 0 | E2: 7033 | F2: =IF(E2=E1,0,1) -> 0 | G2: 7044 | H2: =IF(G2=G1,0,1) -> 0 | I2: 7045 | J2: =IF(I2=I1,0,1) -> 0 | K2: 7062 | L2: =IF(K2=K1,0,1) -> 0 | M2: 7041 | N2: =IF(M2=M1,0,1) -> 0 | O2: 7067 | P2: =IF(O2=O1,0,1) -> 0 | Q2: 7021 | R2: =IF(Q2=Q1,0,1) -> 0 | S2: 7002 | T2: =IF(S2=S1,0,1) -> 0 | U2: 7052 | V2: =IF(U2=U1,0,1) -> 0 | W2: 7058 | X2: =IF(W2=W1,0,1) -> 0 | Y2: 7073 | Z2: =IF(Y2=Y1,0,1) -> 0 | AA2: 7039 | AB2: =IF(AA2=AA1,0,1) -> 0 | AC2: 7040 | AD2: =IF(AC2=AC1,0,1) -> 0 | AE2: 7043 | AF2: =IF(AE2=AE1,0,1) -> 0 | AG2: 7051 | AH2: =IF(AG2=AG1,0,1) -> 0 | AI2: 7056 | AJ2: =IF(AI2=AI1,0,1) -> 0 | AK2: 7063 | AL2: =IF(AK2=AK1,0,1) -> 0 | AM2: 7066 | AN2: =IF(AM2=AM1,0,1) -> 0 | AO2: 7069 | AP2: =IF(AO2=AO1,0,1) -> 0 | AQ2: 7070 | AR2: =IF(AQ2=AQ1,0,1) -> 0 | AS2: 7072 | AT2: =IF(AS2=AS1,0,1) -> 0 | AU2: 7005 | AV2: =IF(AU2=AU1,0,1) -> 0 | AW2: 7006 | AX2: =IF(AW2=AW1,0,1) -> 0
A3: NAME | B3: =[0]!NAME ->  | C3: Bower Grove School | D3: 0 | E3: St Anthony's School | F3: 0 | G3: Rowhill School | H3: 0 | I3: Elms School | J3: 0 | K3: The Orchard School | L3: 0 | M3: Goldwyn School | N3: 0 | O3: Portal House School | P3: 0 | Q3: Valence School | R3: 0 | S3: Broomhill Bank School | T3: 0 | U3: Grange Park School | V3: 0 | W3: Stone Bay School | X3: 0 | Y3: Laleham Gap School | Z3: 0 | AA3: The Ifield School | AB3: 0 | AC3: Foreland Fields School | AD3: 0 | AE3: The Beacon Folkestone | AF3: 0 | AG3: Nexus School | AH3: 0 | AI3: Five Acre Wood School | AJ3: 0 | AK3: St Nicholas' School | AL3: 0 | AM3: Milestone Academy | AN3: 0 | AO3: The Wyvern School | AP3: 0 | AQ3: Oakley School | AR3: 0 | AS3: Meadowfield School | AT3: 0 | AU3: Aspire School | AV3: 0 | AW3: Snowfields Academy | AX3: 0
A4: preold | B4: =[0]!preold -> 0 | C4: 225 | D4: 0 | E4: 110 | F4: 0 | G4: 132 | H4: 0 | I4: 158 | J4: 0 | K4: 93 | L4: 0 | M4: 150 | N4: 0 | O4: 80 | P4: 0 | Q4: 80 | R4: 0 | S4: 218 | T4: 0 | U4: 91 | V4: 0 | W4: 90 | X4: 0 | Y4: 187 | Z4: 0 | AA4: 220 | AB4: 0 | AC4: 209 | AD4: 0 | AE4: 329 | AF4: 0 | AG4: 246 | AH4: 0 | AI4: 542 | AJ4: 0 | AK4: 296 | AL4: 0 | AM4: 326 | AN4: 0 | AO4: 297 | AP4: 0 | AQ4: 170 | AR4: 0 | AS4: 310 | AT4: 0 | AU4: 136 | AV4: 0 | AW4: 120 | AX4: 0
A5: postold | B5: =[0]!postold -> 0 | C5: 0 | D5: 0 | E5: 0 | F5: 0 | G5: 0 | H5: 0 | I5: 0 | J5: 0 | K5: 0 | L5: 0 | M5: 45 | N5: 0 | O5: 0 | P5: 0 | Q5: 30 | R5: 0 | S5: 100 | T5: 0 | U5: 53 | V5: 0 | W5: 10 | X5: 0 | Y5: 9 | Z5: 0 | AA5: 41 | AB5: 0 | AC5: 33 | AD5: 0 | AE5: 73 | AF5: 0 | AG5: 30 | AH5: 0 | AI5: 59 | AJ5: 0 | AK5: 44 | AL5: 0 | AM5: 37 | AN5: 0 | AO5: 33 | AP5: 0 | AQ5: 42 | AR5: 0 | AS5: 41 | AT5: 0 | AU5: 0 | AV5: 0 | AW5: 0 | AX5: 0
A6: weekdayold | B6: =[0]!weekdayold -> 0 | C6: 0 | D6: 0 | E6: 0 | F6: 0 | G6: 0 | H6: 0 | I6: 0 | J6: 0 | K6: 0 | L6: 0 | M6: 0 | N6: 0 | O6: 0 | P6: 0 | Q6: 46 | R6: 0 | S6: 23 | T6: 0 | U6: 0 | V6: 0 | W6: 10 | X6: 0 | Y6: 0 | Z6: 0 | AA6: 0 | AB6: 0 | AC6: 0 | AD6: 0 | AE6: 0 | AF6: 0 | AG6: 0 | AH6: 0 | AI6: 0 | AJ6: 0 | AK6: 0 | AL6: 0 | AM6: 0 | AN6: 0 | AO6: 0 | AP6: 0 | AQ6: 0 | AR6: 0 | AS6: 0 | AT6: 0 | AU6: 0 | AV6: 0 | AW6: 0 | AX6: 0
A7: weekendold | B7: =[0]!weekendold -> 0 | C7: 0 | D7: 0 | E7: 0 | F7: 0 | G7: 0 | H7: 0 | I7: 0 | J7: 0 | K7: 0 | L7: 0 | M7: 0 | N7: 0 | O7: 0 | P7: 0 | Q7: 18 | R7: 0 | S7: 0 | T7: 0 | U7: 0 | V7: 0 | W7: 0 | X7: 0 | Y7: 0 | Z7: 0 | AA7: 0 | AB7: 0 | AC7: 0 | AD7: 0 | AE7: 0 | AF7: 0 | AG7: 0 | AH7: 0 | AI7: 0 | AJ7: 0 | AK7: 0 | AL7: 0 | AM7: 0 | AN7: 0 | AO7: 0 | AP7: 0 | AQ7: 0 | AR7: 0 | AS7: 0 | AT7: 0 | AU7: 0 | AV7: 0 | AW7: 0 | AX7: 0
A8: prenew | B8: =[0]!prenew -> 0 | C8: 236 | D8: 1 | E8: 106 | F8: 0 | G8: 132 | H8: 0 | I8: 152 | J8: 0 | K8: 100 | L8: 0 | M8: 160 | N8: 0 | O8: 80 | P8: 0 | Q8: 80 | R8: 0 | S8: 269 | T8: 0 | U8: 95 | V8: 0 | W8: 92 | X8: 0 | Y8: 205 | Z8: 1 | AA8: 227 | AB8: 0 | AC8: 213 | AD8: 0 | AE8: 278 | AF8: 0 | AG8: 256 | AH8: 0 | AI8: 648 | AJ8: 0 | AK8: 311 | AL8: 0 | AM8: 326 | AN8: 0 | AO8: 303 | AP8: 0 | AQ8: 152 | AR8: 0 | AS8: 346 | AT8: 0 | AU8: 172 | AV8: 0 | AW8: 236 | AX8: 1
A9: postnew | B9: =[0]!postnew -> 0 | C9: 0 | D9: 0 | E9: 0 | F9: 0 | G9: 0 | H9: 0 | I9: 0 | J9: 0 | K9: 0 | L9: 0 | M9: 35 | N9: 0 | O9: 0 | P9: 0 | Q9: 30 | R9: 0 | S9: 107 | T9: 0 | U9: 60 | V9: 0 | W9: 11 | X9: 0 | Y9: 15 | Z9: 0 | AA9: 39 | AB9: 0 | AC9: 30 | AD9: 0 | AE9: 130 | AF9: 0 | AG9: 39 | AH9: 0 | AI9: 77 | AJ9: 0 | AK9: 44 | AL9: 0 | AM9: 37 | AN9: 0 | AO9: 47 | AP9: 0 | AQ9: 60 | AR9: 0 | AS9: 45 | AT9: 0 | AU9: 0 | AV9: 0 | AW9: 0 | AX9: 1
A10: weekdaynew | B10: =[0]!weekdaynew -> 0 | C10: 0 | D10: 0 | E10: 0 | F10: 0 | G10: 0 | H10: 0 | I10: 0 | J10: 0 | K10: 0 | L10: 0 | M10: 0 | N10: 0 | O10: 0 | P10: 0 | Q10: 46 | R10: 0 | S10: 23 | T10: 0 | U10: 0 | V10: 0 | W10: 10 | X10: 0 | Y10: 0 | Z10: 0 | AA10: 0 | AB10: 0 | AC10: 0 | AD10: 0 | AE10: 0 | AF10: 0 | AG10: 0 | AH10: 0 | AI10: 0 | AJ10: 0 | AK10: 0 | AL10: 0 | AM10: 0 | AN10: 0 | AO10: 0 | AP10: 0 | AQ10: 0 | AR10: 0 | AS10: 0 | AT10: 0 | AU10: 0 | AV10: 0 | AW10: 0 | AX10: 0
A11: weekendnew | B11: =[0]!weekendnew -> 0 | C11: 0 | D11: 0 | E11: 0 | F11: 0 | G11: 0 | H11: 0 | I11: 0 | J11: 0 | K11: 0 | L11: 0 | M11: 0 | N11: 0 | O11: 0 | P11: 0 | Q11: 18 | R11: 0 | S11: 0 | T11: 0 | U11: 0 | V11: 0 | W11: 0 | X11: 0 | Y11: 0 | Z11: 0 | AA11: 0 | AB11: 0 | AC11: 0 | AD11: 0 | AE11: 0 | AF11: 0 | AG11: 0 | AH11: 0 | AI11: 0 | AJ11: 0 | AK11: 0 | AL11: 0 | AM11: 0 | AN11: 0 | AO11: 0 | AP11: 0 | AQ11: 0 | AR11: 0 | AS11: 0 | AT11: 0 | AU11: 0 | AV11: 0 | AW11: 0 | AX11: 0
A12: mldold | B12: =[0]!mldold -> 0 | C12: 12976.22101 | D12: 0 | E12: 15391.89642 | F12: 0 | G12: 14884.93986 | H12: 0 | I12: 13800.96214 | J12: 0 | K12: 15845.77406 | L12: 0 | M12: 14116.96934 | N12: 0 | O12: 17142.27634 | P12: 0 | Q12: 17255.0065 | R12: 0 | S12: 13082.9568 | T12: 0 | U12: 13693.73626 | V12: 0 | W12: 15436.17288 | X12: 0 | Y12: 13347.4732 | Z12: 0 | AA12: 12904.60416 | AB12: 0 | AC12: 13124.53908 | AD12: 0 | AE12: 12371.70429 | AF12: 0 | AG12: 12952.89099 | AH12: 0 | AI12: 11758.11902 | AJ12: 0 | AK12: 12872.14032 | AL12: 0 | AM12: 12756.18774 | AN12: 0 | AO12: 12380.57073 | AP12: 0 | AQ12: 13279.76948 | AR12: 0 | AS12: 12563.06671 | AT12: 0 | AU12: 13518.1121 | AV12: 0 | AW12: 14649.27561 | AX12: 0
A13: besdold | B13: =[0]!besdold -> 0 | C13: 19520.38202 | D13: 0 | E13: 21936.05744 | F13: 0 | G13: 21489.40571 | H13: 0 | I13: 20345.12316 | J13: 0 | K13: 22389.93507 | L13: 0 | M13: 20661.13036 | N13: 0 | O13: 23686.43735 | P13: 0 | Q13: 23851.02974 | R13: 0 | S13: 19642.92947 | T13: 0 | U13: 20237.89728 | V13: 0 | W13: 21980.33389 | X13: 0 | Y13: 19891.63422 | Z13: 0 | AA13: 19448.76518 | AB13: 0 | AC13: 19668.70009 | AD13: 0 | AE13: 18915.86531 | AF13: 0 | AG13: 19497.05201 | AH13: 0 | AI13: 18302.28004 | AJ13: 0 | AK13: 19416.30133 | AL13: 0 | AM13: 19352.21097 | AN13: 0 | AO13: 18924.73175 | AP13: 0 | AQ13: 19823.93049 | AR13: 0 | AS13: 19107.22773 | AT13: 0 | AU13: 20062.27312 | AV13: 0 | AW13: 21193.43662 | AX13: 0
A14: sldold | B14: =[0]!sldold -> 0 | C14: 17323.96134 | D14: 0 | E14: 19739.63675 | F14: 0 | G14: 19317.16435 | H14: 0 | I14: 18148.70248 | J14: 0 | K14: 20193.51439 | L14: 0 | M14: 18464.70967 | N14: 0 | O14: 21490.01667 | P14: 0 | Q14: 21687.23099 | R14: 0 | S14: 17456.4545 | T14: 0 | U14: 18041.47659 | V14: 0 | W14: 19783.91321 | X14: 0 | Y14: 17695.21353 | Z14: 0 | AA14: 17252.34449 | AB14: 0 | AC14: 17472.27941 | AD14: 0 | AE14: 16719.44462 | AF14: 0 | AG14: 17300.63132 | AH14: 0 | AI14: 16105.85935 | AJ14: 0 | AK14: 17219.88065 | AL14: 0 | AM14: 17188.41222 | AN14: 0 | AO14: 16728.31107 | AP14: 0 | AQ14: 17627.50981 | AR14: 0 | AS14: 16910.80704 | AT14: 0 | AU14: 17865.85243 | AV14: 0 | AW14: 18997.01594 | AX14: 0
A15: pdold | B15: =[0]!pdold -> 0 | C15: 24569.44354 | D15: 0 | E15: 26985.11896 | F15: 0 | G15: 26703.35043 | H15: 0 | I15: 25394.18468 | J15: 0 | K15: 27438.99659 | L15: 0 | M15: 25710.19188 | N15: 0 | O15: 28735.49887 | P15: 0 | Q15: 29073.41707 | R15: 0 | S15: 24744.83423 | T15: 0 | U15: 25286.9588 | V15: 0 | W15: 27029.39541 | X15: 0 | Y15: 24940.69574 | Z15: 0 | AA15: 24497.8267 | AB15: 0 | AC15: 24717.76161 | AD15: 0 | AE15: 23964.92683 | AF15: 0 | AG15: 24546.11352 | AH15: 0 | AI15: 23351.34156 | AJ15: 0 | AK15: 24465.36285 | AL15: 0 | AM15: 24574.5983 | AN15: 0 | AO15: 23973.79327 | AP15: 0 | AQ15: 24872.99201 | AR15: 0 | AS15: 24156.28925 | AT15: 0 | AU15: 25111.33464 | AV15: 0 | AW15: 26242.49814 | AX15: 0
A16: asdold | B16: =[0]!asdold -> 0 | C16: 19520.38202 | D16: 0 | E16: 21936.05744 | F16: 0 | G16: 21562.72317 | H16: 0 | I16: 20345.12316 | J16: 0 | K16: 22389.93507 | L16: 0 | M16: 20661.13036 | N16: 0 | O16: 23686.43735 | P16: 0 | Q16: 23932.78981 | R16: 0 | S16: 20470.33208 | T16: 0 | U16: 21035.84744 | V16: 0 | W16: 29959.83558 | X16: 0 | Y16: 20689.58439 | Z16: 0 | AA16: 20246.71535 | AB16: 0 | AC16: 20466.65026 | AD16: 0 | AE16: 19713.81548 | AF16: 0 | AG16: 20295.00217 | AH16: 0 | AI16: 19100.23021 | AJ16: 0 | AK16: 20214.2515 | AL16: 0 | AM16: 20246.76513 | AN16: 0 | AO16: 19722.68192 | AP16: 0 | AQ16: 20621.88066 | AR16: 0 | AS16: 19905.17789 | AT16: 0 | AU16: 20860.22329 | AV16: 0 | AW16: 21991.38679 | AX16: 0
A17: pdweekdayold | B17: =[0]!pdweekdayold -> 0 | C17: 0 | D17: 0 | E17: 0 | F17: 0 | G17: 0 | H17: 0 | I17: 0 | J17: 0 | K17: 0 | L17: 0 | M17: 0 | N17: 0 | O17: 0 | P17: 0 | Q17: 81182.38995 | R17: 0 | S17: 0 | T17: 0 | U17: 0 | V17: 0 | W17: 89190.01477 | X17: 0 | Y17: 0 | Z17: 0 | AA17: 0 | AB17: 0 | AC17: 0 | AD17: 0 | AE17: 0 | AF17: 0 | AG17: 0 | AH17: 0 | AI17: 0 | AJ17: 0 | AK17: 0 | AL17: 0 | AM17: 0 | AN17: 0 | AO17: 0 | AP17: 0 | AQ17: 0 | AR17: 0 | AS17: 0 | AT17: 0 | AU17: 0 | AV17: 0 | AW17: 0 | AX17: 0
A18: asdweekdayold | B18: =[0]!asdweekdayold -> 0 | C18: 0 | D18: 0 | E18: 0 | F18: 0 | G18: 0 | H18: 0 | I18: 0 | J18: 0 | K18: 0 | L18: 0 | M18: 0 | N18: 0 | O18: 0 | P18: 0 | Q18: 0 | R18: 0 | S18: 60199.58072 | T18: 0 | U18: 0 | V18: 0 | W18: 92120.45494 | X18: 0 | Y18: 0 | Z18: 0 | AA18: 0 | AB18: 0 | AC18: 0 | AD18: 0 | AE18: 0 | AF18: 0 | AG18: 0 | AH18: 0 | AI18: 0 | AJ18: 0 | AK18: 0 | AL18: 0 | AM18: 0 | AN18: 0 | AO18: 0 | AP18: 0 | AQ18: 0 | AR18: 0 | AS18: 0 | AT18: 0 | AU18: 0 | AV18: 0 | AW18: 0 | AX18: 0
A19: pdweekendold | B19: =[0]!pdweekendold -> 0 | C19: 0 | D19: 0 | E19: 0 | F19: 0 | G19: 0 | H19: 0 | I19: 0 | J19: 0 | K19: 0 | L19: 0 | M19: 0 | N19: 0 | O19: 0 | P19: 0 | Q19: 109339.4689 | R19: 0 | S19: 0 | T19: 0 | U19: 0 | V19: 0 | W19: 0 | X19: 0 | Y19: 0 | Z19: 0 | AA19: 0 | AB19: 0 | AC19: 0 | AD19: 0 | AE19: 0 | AF19: 0 | AG19: 0 | AH19: 0 | AI19: 0 | AJ19: 0 | AK19: 0 | AL19: 0 | AM19: 0 | AN19: 0 | AO19: 0 | AP19: 0 | AQ19: 0 | AR19: 0 | AS19: 0 | AT19: 0 | AU19: 0 | AV19: 0 | AW19: 0 | AX19: 0
A20: mldnew | B20: =[0]!mldnew -> 0 | C20: 12882.72631 | D20: 1 | E20: 15586.72451 | F20: 0 | G20: 14888.71622 | H20: 0 | I20: 13931.58019 | J20: 0 | K20: 15496.60703 | L20: 0 | M20: 14133.60069 | N20: 0 | O20: 17193.66534 | P20: 0 | Q20: 17222.2703 | R20: 0 | S20: 12678.08634 | T20: 0 | U20: 13491.82329 | V20: 0 | W20: 15301.46421 | X20: 0 | Y20: 13006.30848 | Z20: 1 | AA20: 12857.55239 | AB20: 0 | AC20: 13111.34835 | AD20: 0 | AE20: 12345.35901 | AF20: 0 | AG20: 12797.82902 | AH20: 0 | AI20: 11564.60543 | AJ20: 0 | AK20: 12784.81907 | AL20: 0 | AM20: 12760.128 | AN20: 0 | AO20: 12257.11984 | AP20: 0 | AQ20: 13294.43675 | AR20: 0 | AS20: 12342.03318 | AT20: 0 | AU20: 13425.01372 | AV20: 0 | AW20: 13437.57778 | AX20: 1
A21: besdnew | B21: =[0]!besdnew -> 0 | C21: 19426.88733 | D21: 1 | E21: 22130.88553 | F21: 0 | G21: 21493.18207 | H21: 0 | I21: 20475.74121 | J21: 0 | K21: 22040.76804 | L21: 0 | M21: 20677.76171 | N21: 0 | O21: 23737.82636 | P21: 0 | Q21: 23818.29354 | R21: 0 | S21: 19238.05901 | T21: 0 | U21: 20035.98431 | V21: 0 | W21: 21845.62523 | X21: 0 | Y21: 19550.46949 | Z21: 1 | AA21: 19401.71341 | AB21: 0 | AC21: 19655.50937 | AD21: 0 | AE21: 18889.52003 | AF21: 0 | AG21: 19341.99003 | AH21: 0 | AI21: 18108.76645 | AJ21: 0 | AK21: 19328.98009 | AL21: 0 | AM21: 19356.15124 | AN21: 0 | AO21: 18801.28086 | AP21: 0 | AQ21: 19838.59777 | AR21: 0 | AS21: 18886.1942 | AT21: 0 | AU21: 19969.17474 | AV21: 0 | AW21: 19981.7388 | AX21: 1
A22: sldnew | B22: =[0]!sldnew -> 0 | C22: 17230.46665 | D22: 1 | E22: 19934.46484 | F22: 0 | G22: 19320.9407 | H22: 0 | I22: 18279.32053 | J22: 0 | K22: 19844.34736 | L22: 0 | M22: 18481.34103 | N22: 0 | O22: 21541.40567 | P22: 0 | Q22: 21654.49479 | R22: 0 | S22: 17051.58404 | T22: 0 | U22: 17839.56363 | V22: 0 | W22: 19649.20455 | X22: 0 | Y22: 17354.04881 | Z22: 1 | AA22: 17205.29273 | AB22: 0 | AC22: 17459.08869 | AD22: 0 | AE22: 16693.09934 | AF22: 0 | AG22: 17145.56935 | AH22: 0 | AI22: 15912.34576 | AJ22: 0 | AK22: 17132.5594 | AL22: 0 | AM22: 17192.35249 | AN22: 0 | AO22: 16604.86018 | AP22: 0 | AQ22: 17642.17708 | AR22: 0 | AS22: 16689.77351 | AT22: 0 | AU22: 17772.75405 | AV22: 0 | AW22: 17785.31811 | AX22: 1
A23: pdnew | B23: =[0]!pdnew -> 0 | C23: 24475.94885 | D23: 1 | E23: 27179.94704 | F23: 0 | G23: 26707.12678 | H23: 0 | I23: 25524.80273 | J23: 0 | K23: 27089.82956 | L23: 0 | M23: 25726.82323 | N23: 0 | O23: 28786.88788 | P23: 0 | Q23: 29040.68087 | R23: 0 | S23: 24339.96376 | T23: 0 | U23: 25085.04583 | V23: 0 | W23: 26894.68675 | X23: 0 | Y23: 24599.53101 | Z23: 1 | AA23: 24450.77493 | AB23: 0 | AC23: 24704.57089 | AD23: 0 | AE23: 23938.58154 | AF23: 0 | AG23: 24391.05155 | AH23: 0 | AI23: 23157.82797 | AJ23: 0 | AK23: 24378.04161 | AL23: 0 | AM23: 24578.53857 | AN23: 0 | AO23: 23850.34238 | AP23: 0 | AQ23: 24887.65929 | AR23: 0 | AS23: 23935.25572 | AT23: 0 | AU23: 25018.23625 | AV23: 0 | AW23: 25030.80032 | AX23: 1
A24: asdnew | B24: =[0]!asdnew -> 0 | C24: 19426.88733 | D24: 1 | E24: 22130.88553 | F24: 0 | G24: 21566.49952 | H24: 0 | I24: 20475.74121 | J24: 0 | K24: 22040.76804 | L24: 0 | M24: 20677.76171 | N24: 0 | O24: 23737.82636 | P24: 0 | Q24: 23900.0536 | R24: 0 | S24: 20065.46161 | T24: 0 | U24: 20833.93448 | V24: 0 | W24: 29825.12692 | X24: 0 | Y24: 20348.41966 | Z24: 1 | AA24: 20199.66358 | AB24: 0 | AC24: 20453.45954 | AD24: 0 | AE24: 19687.47019 | AF24: 0 | AG24: 20139.9402 | AH24: 0 | AI24: 18906.71662 | AJ24: 0 | AK24: 20126.93026 | AL24: 0 | AM24: 20250.7054 | AN24: 0 | AO24: 19599.23103 | AP24: 0 | AQ24: 20636.54794 | AR24: 0 | AS24: 19684.14437 | AT24: 0 | AU24: 20767.1249 | AV24: 0 | AW24: 20779.68897 | AX24: 1
A25: pdweekdaynew | B25: =[0]!pdweekdaynew -> 0 | C25: 0 | D25: 0 | E25: 0 | F25: 0 | G25: 0 | H25: 0 | I25: 0 | J25: 0 | K25: 0 | L25: 0 | M25: 0 | N25: 0 | O25: 0 | P25: 0 | Q25: 81149.65375 | R25: 0 | S25: 0 | T25: 0 | U25: 0 | V25: 0 | W25: 89055.30611 | X25: 0 | Y25: 0 | Z25: 0 | AA25: 0 | AB25: 0 | AC25: 0 | AD25: 0 | AE25: 0 | AF25: 0 | AG25: 0 | AH25: 0 | AI25: 0 | AJ25: 0 | AK25: 0 | AL25: 0 | AM25: 0 | AN25: 0 | AO25: 0 | AP25: 0 | AQ25: 0 | AR25: 0 | AS25: 0 | AT25: 0 | AU25: 0 | AV25: 0 | AW25: 0 | AX25: 0
A26: asdweekdaynew | B26: =[0]!asdweekdaynew -> 0 | C26: 0 | D26: 0 | E26: 0 | F26: 0 | G26: 0 | H26: 0 | I26: 0 | J26: 0 | K26: 0 | L26: 0 | M26: 0 | N26: 0 | O26: 0 | P26: 0 | Q26: 0 | R26: 0 | S26: 59794.71026 | T26: 0 | U26: 0 | V26: 0 | W26: 91985.74628 | X26: 0 | Y26: 0 | Z26: 0 | AA26: 0 | AB26: 0 | AC26: 0 | AD26: 0 | AE26: 0 | AF26: 0 | AG26: 0 | AH26: 0 | AI26: 0 | AJ26: 0 | AK26: 0 | AL26: 0 | AM26: 0 | AN26: 0 | AO26: 0 | AP26: 0 | AQ26: 0 | AR26: 0 | AS26: 0 | AT26: 0 | AU26: 0 | AV26: 0 | AW26: 0 | AX26: 0
A27: pdweekendnew | B27: =[0]!pdweekendnew -> 0 | C27: 0 | D27: 0 | E27: 0 | F27: 0 | G27: 0 | H27: 0 | I27: 0 | J27: 0 | K27: 0 | L27: 0 | M27: 0 | N27: 0 | O27: 0 | P27: 0 | Q27: 109306.7327 | R27: 0 | S27: 0 | T27: 0 | U27: 0 | V27: 0 | W27: 0 | X27: 0 | Y27: 0 | Z27: 0 | AA27: 0 | AB27: 0 | AC27: 0 | AD27: 0 | AE27: 0 | AF27: 0 | AG27: 0 | AH27: 0 | AI27: 0 | AJ27: 0 | AK27: 0 | AL27: 0 | AM27: 0 | AN27: 0 | AO27: 0 | AP27: 0 | AQ27: 0 | AR27: 0 | AS27: 0 | AT27: 0 | AU27: 0 | AV27: 0 | AW27: 0 | AX27: 0
A28: mldyear | B28: =[0]!mldyear -> 0 | C28: 12921.68243 | D28: 1 | E28: 15505.54614 | F28: 0 | G28: 14887.14274 | H28: 0 | I28: 13877.15601 | J28: 0 | K28: 15642.09329 | L28: 0 | M28: 14126.67096 | N28: 0 | O28: 17172.25326 | P28: 0 | Q28: 17235.91038 | R28: 0 | S28: 12846.78237 | T28: 0 | U28: 13575.9537 | V28: 0 | W28: 15357.59282 | X28: 0 | Y28: 13148.46044 | Z28: 1 | AA28: 12877.1573 | AB28: 0 | AC28: 13116.84449 | AD28: 0 | AE28: 12356.33621 | AF28: 0 | AG28: 12862.43817 | AH28: 0 | AI28: 11645.23609 | AJ28: 0 | AK28: 12821.20292 | AL28: 0 | AM28: 12758.48623 | AN28: 0 | AO28: 12308.55772 | AP28: 0 | AQ28: 13288.32539 | AR28: 0 | AS28: 12434.13048 | AT28: 0 | AU28: 13463.80471 | AV28: 0 | AW28: 13942.45187 | AX28: 1
A29: besdyear | B29: =[0]!besdyear -> 0 | C29: 19465.84345 | D29: 1 | E29: 22049.70716 | F29: 0 | G29: 21491.60859 | H29: 0 | I29: 20421.31702 | J29: 0 | K29: 22186.25431 | L29: 0 | M29: 20670.83198 | N29: 0 | O29: 23716.41427 | P29: 0 | Q29: 23831.93362 | R29: 0 | S29: 19406.75504 | T29: 0 | U29: 20120.11471 | V29: 0 | W29: 21901.75384 | X29: 0 | Y29: 19692.62146 | Z29: 1 | AA29: 19421.31831 | AB29: 0 | AC29: 19661.00551 | AD29: 0 | AE29: 18900.49723 | AF29: 0 | AG29: 19406.59919 | AH29: 0 | AI29: 18189.39711 | AJ29: 0 | AK29: 19365.36394 | AL29: 0 | AM29: 19354.50946 | AN29: 0 | AO29: 18852.71873 | AP29: 0 | AQ29: 19832.4864 | AR29: 0 | AS29: 18978.2915 | AT29: 0 | AU29: 20007.96573 | AV29: 0 | AW29: 20486.61289 | AX29: 1
A30: sldyear | B30: =[0]!sldyear -> 0 | C30: 17269.42277 | D30: 1 | E30: 19853.28647 | F30: 0 | G30: 19319.36722 | H30: 0 | I30: 18224.89634 | J30: 0 | K30: 19989.83362 | L30: 0 | M30: 18474.4113 | N30: 0 | O30: 21519.99359 | P30: 0 | Q30: 21668.13487 | R30: 0 | S30: 17220.28006 | T30: 0 | U30: 17923.69403 | V30: 0 | W30: 19705.33316 | X30: 0 | Y30: 17496.20078 | Z30: 1 | AA30: 17224.89763 | AB30: 0 | AC30: 17464.58482 | AD30: 0 | AE30: 16704.07654 | AF30: 0 | AG30: 17210.1785 | AH30: 0 | AI30: 15992.97642 | AJ30: 0 | AK30: 17168.94326 | AL30: 0 | AM30: 17190.71071 | AN30: 0 | AO30: 16656.29805 | AP30: 0 | AQ30: 17636.06572 | AR30: 0 | AS30: 16781.87082 | AT30: 0 | AU30: 17811.54504 | AV30: 0 | AW30: 18290.19221 | AX30: 1
A31: pdyear | B31: =[0]!pdyear -> 0 | C31: 24514.90497 | D31: 1 | E31: 27098.76868 | F31: 0 | G31: 26705.5533 | H31: 0 | I31: 25470.37854 | J31: 0 | K31: 27235.31583 | L31: 0 | M31: 25719.8935 | N31: 0 | O31: 28765.47579 | P31: 0 | Q31: 29054.32095 | R31: 0 | S31: 24508.65979 | T31: 0 | U31: 25169.17623 | V31: 0 | W31: 26950.81536 | X31: 0 | Y31: 24741.68298 | Z31: 1 | AA31: 24470.37983 | AB31: 0 | AC31: 24710.06703 | AD31: 0 | AE31: 23949.55875 | AF31: 0 | AG31: 24455.66071 | AH31: 0 | AI31: 23238.45863 | AJ31: 0 | AK31: 24414.42546 | AL31: 0 | AM31: 24576.89679 | AN31: 0 | AO31: 23901.78025 | AP31: 0 | AQ31: 24881.54792 | AR31: 0 | AS31: 24027.35302 | AT31: 0 | AU31: 25057.02725 | AV31: 0 | AW31: 25535.67441 | AX31: 1
A32: asdyear | B32: =[0]!asdyear -> 0 | C32: 19465.84345 | D32: 1 | E32: 22049.70716 | F32: 0 | G32: 21564.92604 | H32: 0 | I32: 20421.31702 | J32: 0 | K32: 22186.25431 | L32: 0 | M32: 20670.83198 | N32: 0 | O32: 23716.41427 | P32: 0 | Q32: 23913.69369 | R32: 0 | S32: 20234.15764 | T32: 0 | U32: 20918.06488 | V32: 0 | W32: 29881.25552 | X32: 0 | Y32: 20490.57163 | Z32: 1 | AA32: 20219.26848 | AB32: 0 | AC32: 20458.95567 | AD32: 0 | AE32: 19698.44739 | AF32: 0 | AG32: 20204.54936 | AH32: 0 | AI32: 18987.34728 | AJ32: 0 | AK32: 20163.31411 | AL32: 0 | AM32: 20249.06362 | AN32: 0 | AO32: 19650.6689 | AP32: 0 | AQ32: 20630.43657 | AR32: 0 | AS32: 19776.24167 | AT32: 0 | AU32: 20805.9159 | AV32: 0 | AW32: 21284.56306 | AX32: 1
A33: pdweekdayyear | B33: =[0]!pdweekdayyear -> 0 | C33: 0 | D33: 0 | E33: 0 | F33: 0 | G33: 0 | H33: 0 | I33: 0 | J33: 0 | K33: 0 | L33: 0 | M33: 0 | N33: 0 | O33: 0 | P33: 0 | Q33: 81163.29384 | R33: 0 | S33: 0 | T33: 0 | U33: 0 | V33: 0 | W33: 89111.43472 | X33: 0 | Y33: 0 | Z33: 0 | AA33: 0 | AB33: 0 | AC33: 0 | AD33: 0 | AE33: 0 | AF33: 0 | AG33: 0 | AH33: 0 | AI33: 0 | AJ33: 0 | AK33: 0 | AL33: 0 | AM33: 0 | AN33: 0 | AO33: 0 | AP33: 0 | AQ33: 0 | AR33: 0 | AS33: 0 | AT33: 0 | AU33: 0 | AV33: 0 | AW33: 0 | AX33: 0
A34: asdweekdayyear | B34: =[0]!asdweekdayyear -> 0 | C34: 0 | D34: 0 | E34: 0 | F34: 0 | G34: 0 | H34: 0 | I34: 0 | J34: 0 | K34: 0 | L34: 0 | M34: 0 | N34: 0 | O34: 0 | P34: 0 | Q34: 0 | R34: 0 | S34: 59963.40628 | T34: 0 | U34: 0 | V34: 0 | W34: 92041.87489 | X34: 0 | Y34: 0 | Z34: 0 | AA34: 0 | AB34: 0 | AC34: 0 | AD34: 0 | AE34: 0 | AF34: 0 | AG34: 0 | AH34: 0 | AI34: 0 | AJ34: 0 | AK34: 0 | AL34: 0 | AM34: 0 | AN34: 0 | AO34: 0 | AP34: 0 | AQ34: 0 | AR34: 0 | AS34: 0 | AT34: 0 | AU34: 0 | AV34: 0 | AW34: 0 | AX34: 0
A35: pdweekendyear | B35: =[0]!pdweekendyear -> 0 | C35: 0 | D35: 0 | E35: 0 | F35: 0 | G35: 0 | H35: 0 | I35: 0 | J35: 0 | K35: 0 | L35: 0 | M35: 0 | N35: 0 | O35: 0 | P35: 0 | Q35: 109320.3728 | R35: 0 | S35: 0 | T35: 0 | U35: 0 | V35: 0 | W35: 0 | X35: 0 | Y35: 0 | Z35: 0 | AA35: 0 | AB35: 0 | AC35: 0 | AD35: 0 | AE35: 0 | AF35: 0 | AG35: 0 | AH35: 0 | AI35: 0 | AJ35: 0 | AK35: 0 | AL35: 0 | AM35: 0 | AN35: 0 | AO35: 0 | AP35: 0 | AQ35: 0 | AR35: 0 | AS35: 0 | AT35: 0 | AU35: 0 | AV35: 0 | AW35: 0 | AX35: 0
A36: mldlastyear | B36: =[0]!mldlastyear -> 0 | C36: 12847.95 | D36: 0 | E36: 15483.34 | F36: 0 | G36: 14744.01 | H36: 0 | I36: 13666.89 | J36: 0 | K36: 15894.82 | L36: 0 | M36: 14106.03 | N36: 0 | O36: 16963.97 | P36: 0 | Q36: 17051.54 | R36: 0 | S36: 14529.83 | T36: 0 | U36: 13560.94 | V36: 0 | W36: 16536.41 | X36: 0 | Y36: 13221.34 | Z36: 0 | AA36: 12837.48 | AB36: 0 | AC36: 12900.34 | AD36: 0 | AE36: 12252.69 | AF36: 0 | AG36: 12911.72 | AH36: 0 | AI36: 11603.02 | AJ36: 0 | AK36: 12848.21 | AL36: 0 | AM36: 12700.22 | AN36: 0 | AO36: 12375.1 | AP36: 0 | AQ36: 13160.15 | AR36: 0 | AS36: 12303.93 | AT36: 0 | AU36: 13384.19 | AV36: 0 | AW36: 13399.45 | AX36: 0
A37: besdlastyear | B37: =[0]!besdlastyear -> 0 | C37: 19333.73 | D37: 0 | E37: 21969.13 | F37: 0 | G37: 21289.57 | H37: 0 | I37: 20152.68 | J37: 0 | K37: 22380.61 | L37: 0 | M37: 20522.38 | N37: 0 | O37: 23449.76 | P37: 0 | Q37: 23588.73 | R37: 0 | S37: 19460.6 | T37: 0 | U37: 20046.73 | V37: 0 | W37: 21992.97 | X37: 0 | Y37: 19707.13 | Z37: 0 | AA37: 19323.26 | AB37: 0 | AC37: 19386.13 | AD37: 0 | AE37: 18738.47 | AF37: 0 | AG37: 19397.51 | AH37: 0 | AI37: 18088.81 | AJ37: 0 | AK37: 19334 | AL37: 0 | AM37: 19237.41 | AN37: 0 | AO37: 18860.89 | AP37: 0 | AQ37: 19645.94 | AR37: 0 | AS37: 18789.72 | AT37: 0 | AU37: 19869.98 | AV37: 0 | AW37: 19885.24 | AX37: 0
A38: sldlastyear | B38: =[0]!sldlastyear -> 0 | C38: 17156.9 | D38: 0 | E38: 19792.3 | F38: 0 | G38: 19136.7 | H38: 0 | I38: 17975.85 | J38: 0 | K38: 20203.78 | L38: 0 | M38: 18345.55 | N38: 0 | O38: 21272.93 | P38: 0 | Q38: 21444.23 | R38: 0 | S38: 18083.41 | T38: 0 | U38: 17869.9 | V38: 0 | W38: 20404.25 | X38: 0 | Y38: 17530.3 | Z38: 0 | AA38: 17146.44 | AB38: 0 | AC38: 17209.3 | AD38: 0 | AE38: 16561.64 | AF38: 0 | AG38: 17220.68 | AH38: 0 | AI38: 15911.98 | AJ38: 0 | AK38: 17157.17 | AL38: 0 | AM38: 17092.91 | AN38: 0 | AO38: 16684.06 | AP38: 0 | AQ38: 17469.11 | AR38: 0 | AS38: 16612.89 | AT38: 0 | AU38: 17693.15 | AV38: 0 | AW38: 17708.41 | AX38: 0
A39: pdlastyear | B39: =[0]!pdlastyear -> 0 | C39: 24337.76 | D39: 0 | E39: 26973.15 | F39: 0 | G39: 26457.01 | H39: 0 | I39: 25156.71 | J39: 0 | K39: 27384.63 | L39: 0 | M39: 25526.4 | N39: 0 | O39: 28453.78 | P39: 0 | Q39: 28764.54 | R39: 0 | S39: 24516.99 | T39: 0 | U39: 25050.76 | V39: 0 | W39: 26996.99 | X39: 0 | Y39: 24711.16 | Z39: 0 | AA39: 24327.29 | AB39: 0 | AC39: 24390.16 | AD39: 0 | AE39: 23742.5 | AF39: 0 | AG39: 24401.54 | AH39: 0 | AI39: 23092.83 | AJ39: 0 | AK39: 24338.02 | AL39: 0 | AM39: 24413.22 | AN39: 0 | AO39: 23864.91 | AP39: 0 | AQ39: 24649.96 | AR39: 0 | AS39: 23793.74 | AT39: 0 | AU39: 24874.01 | AV39: 0 | AW39: 24889.26 | AX39: 0
A40: asdlastyear | B40: =[0]!asdlastyear -> 0 | C40: 19333.73 | D40: 0 | E40: 21969.13 | F40: 0 | G40: 21362.23 | H40: 0 | I40: 20152.68 | J40: 0 | K40: 22380.61 | L40: 0 | M40: 20522.38 | N40: 0 | O40: 23449.76 | P40: 0 | Q40: 23669.76 | R40: 0 | S40: 20545.71 | T40: 0 | U40: 20837.57 | V40: 0 | W40: 29901.29 | X40: 0 | Y40: 20497.96 | Z40: 0 | AA40: 20114.1 | AB40: 0 | AC40: 20176.97 | AD40: 0 | AE40: 19529.31 | AF40: 0 | AG40: 20188.34 | AH40: 0 | AI40: 18879.64 | AJ40: 0 | AK40: 20124.83 | AL40: 0 | AM40: 20123.98 | AN40: 0 | AO40: 19651.72 | AP40: 0 | AQ40: 20436.77 | AR40: 0 | AS40: 19580.55 | AT40: 0 | AU40: 20660.81 | AV40: 0 | AW40: 20676.07 | AX40: 0
A41: pdweekdaylastyear | B41: =[0]!pdweekdaylastyear -> 0 | C41: 0 | D41: 0 | E41: 0 | F41: 0 | G41: 0 | H41: 0 | I41: 0 | J41: 0 | K41: 0 | L41: 0 | M41: 0 | N41: 0 | O41: 0 | P41: 0 | Q41: 80408.71 | R41: 0 | S41: 0 | T41: 0 | U41: 0 | V41: 0 | W41: 83703.13 | X41: 0 | Y41: 0 | Z41: 0 | AA41: 0 | AB41: 0 | AC41: 0 | AD41: 0 | AE41: 0 | AF41: 0 | AG41: 0 | AH41: 0 | AI41: 0 | AJ41: 0 | AK41: 0 | AL41: 0 | AM41: 0 | AN41: 0 | AO41: 0 | AP41: 0 | AQ41: 0 | AR41: 0 | AS41: 0 | AT41: 0 | AU41: 0 | AV41: 0 | AW41: 0 | AX41: 0
A42: asdweekdaylastyear | B42: =[0]!asdweekdaylastyear -> 0 | C42: 0 | D42: 0 | E42: 0 | F42: 0 | G42: 0 | H42: 0 | I42: 0 | J42: 0 | K42: 0 | L42: 0 | M42: 0 | N42: 0 | O42: 0 | P42: 0 | Q42: 0 | R42: 0 | S42: 59779.4 | T42: 0 | U42: 0 | V42: 0 | W42: 86607.43 | X42: 0 | Y42: 0 | Z42: 0 | AA42: 0 | AB42: 0 | AC42: 0 | AD42: 0 | AE42: 0 | AF42: 0 | AG42: 0 | AH42: 0 | AI42: 0 | AJ42: 0 | AK42: 0 | AL42: 0 | AM42: 0 | AN42: 0 | AO42: 0 | AP42: 0 | AQ42: 0 | AR42: 0 | AS42: 0 | AT42: 0 | AU42: 0 | AV42: 0 | AW42: 0 | AX42: 0
A43: pdweekendlastyear | B43: =[0]!pdweekendlastyear -> 0 | C43: 0 | D43: 0 | E43: 0 | F43: 0 | G43: 0 | H43: 0 | I43: 0 | J43: 0 | K43: 0 | L43: 0 | M43: 0 | N43: 0 | O43: 0 | P43: 0 | Q43: 108314.64 | R43: 0 | S43: 0 | T43: 0 | U43: 0 | V43: 0 | W43: 0 | X43: 0 | Y43: 0 | Z43: 0 | AA43: 0 | AB43: 0 | AC43: 0 | AD43: 0 | AE43: 0 | AF43: 0 | AG43: 0 | AH43: 0 | AI43: 0 | AJ43: 0 | AK43: 0 | AL43: 0 | AM43: 0 | AN43: 0 | AO43: 0 | AP43: 0 | AQ43: 0 | AR43: 0 | AS43: 0 | AT43: 0 | AU43: 0 | AV43: 0 | AW43: 0 | AX43: 0
A44: MLD&SLCN | B44: =mldfinal -> 0 | C44: 12921.68243 | D44: 1 | E44: 15632.55673 | F44: 0 | G44: 14972.183 | H44: 0 | I44: 13877.15601 | J44: 0 | K44: 16044.4332 | L44: 0 | M44: 14529.2109 | N44: 0 | O44: 17172.25326 | P44: 0 | Q44: 17235.91038 | R44: 0 | S44: 14965.7249 | T44: 0 | U44: 13575.9537 | V44: 0 | W44: 17032.5023 | X44: 0 | Y44: 13148.46044 | Z44: 1 | AA44: 12877.1573 | AB44: 0 | AC44: 13116.84449 | AD44: 0 | AE44: 12356.33621 | AF44: 0 | AG44: 13156.2724 | AH44: 0 | AI44: 11645.23609 | AJ44: 0 | AK44: 12931.57026 | AL44: 0 | AM44: 12758.48623 | AN44: 0 | AO44: 12380.58183 | AP44: 0 | AQ44: 13288.32539 | AR44: 0 | AS44: 12434.13048 | AT44: 0 | AU44: 13463.80471 | AV44: 0 | AW44: 13942.45187 | AX44: 1
A45: BESD | B45: =besdfinal -> 0 | C45: 19465.84345 | D45: 1 | E45: 22055.98229 | F45: 0 | G45: 21491.60859 | H45: 0 | I45: 20421.31702 | J45: 0 | K45: 22467.85876 | L45: 0 | M45: 20670.83198 | N45: 0 | O45: 23716.41427 | P45: 0 | Q45: 23831.93362 | R45: 0 | S45: 19406.75504 | T45: 1 | U45: 20120.11471 | V45: 0 | W45: 22338.0742 | X45: 0 | Y45: 19692.62146 | Z45: 1 | AA45: 19421.31831 | AB45: 0 | AC45: 19661.00551 | AD45: 0 | AE45: 18900.49723 | AF45: 0 | AG45: 19443.89761 | AH45: 0 | AI45: 18189.39711 | AJ45: 0 | AK45: 19365.36394 | AL45: 0 | AM45: 19354.50946 | AN45: 0 | AO45: 18852.71873 | AP45: 1 | AQ45: 19832.4864 | AR45: 0 | AS45: 18978.2915 | AT45: 0 | AU45: 20007.96573 | AV45: 0 | AW45: 20486.61289 | AX45: 1
A46: SLD | B46: =sldfinal -> 0 | C46: 17269.42277 | D46: 1 | E46: 19900.08412 | F46: 0 | G46: 19319.36722 | H46: 0 | I46: 18224.89634 | J46: 0 | K46: 20311.96059 | L46: 0 | M46: 18474.4113 | N46: 0 | O46: 21519.99359 | P46: 0 | Q46: 21668.13487 | R46: 0 | S46: 18625.9123 | T46: 0 | U46: 17923.69403 | V46: 0 | W46: 21016.3775 | X46: 0 | Y46: 17496.20078 | Z46: 1 | AA46: 17224.89763 | AB46: 0 | AC46: 17464.58482 | AD46: 0 | AE46: 16704.07654 | AF46: 0 | AG46: 17287.99944 | AH46: 0 | AI46: 15992.97642 | AJ46: 0 | AK46: 17199.09765 | AL46: 0 | AM46: 17190.71071 | AN46: 0 | AO46: 16656.29805 | AP46: 1 | AQ46: 17636.06572 | AR46: 0 | AS46: 16781.87082 | AT46: 0 | AU46: 17811.54504 | AV46: 0 | AW46: 18290.19221 | AX46: 1
A47: PD&PMLD | B47: =pdfinal -> 0 | C47: 24514.90497 | D47: 1 | E47: 27098.76868 | F47: 0 | G47: 26705.5533 | H47: 0 | I47: 25470.37854 | J47: 0 | K47: 27423.76842 | L47: 0 | M47: 25719.8935 | N47: 0 | O47: 28765.47579 | P47: 0 | Q47: 29054.32095 | R47: 0 | S47: 24729.8983 | T47: 0 | U47: 25169.17623 | V47: 0 | W47: 27656.1386 | X47: 0 | Y47: 24741.68298 | Z47: 1 | AA47: 24470.37983 | AB47: 0 | AC47: 24710.06703 | AD47: 0 | AE47: 23949.55875 | AF47: 0 | AG47: 24455.66071 | AH47: 0 | AI47: 23238.45863 | AJ47: 0 | AK47: 24414.42546 | AL47: 0 | AM47: 24576.89679 | AN47: 0 | AO47: 23901.78025 | AP47: 0 | AQ47: 24881.54792 | AR47: 0 | AS47: 24027.35302 | AT47: 0 | AU47: 25057.02725 | AV47: 0 | AW47: 25535.67441 | AX47: 1
A48: ASD | B48: =asdfinal -> 0 | C48: 19465.84345 | D48: 1 | E48: 22055.98229 | F48: 0 | G48: 21564.92604 | H48: 0 | I48: 20421.31702 | J48: 0 | K48: 22467.85876 | L48: 0 | M48: 20670.83198 | N48: 0 | O48: 23716.41427 | P48: 0 | Q48: 23913.69369 | R48: 0 | S48: 21162.0813 | T48: 0 | U48: 20918.06488 | V48: 0 | W48: 30448.7364 | X48: 0 | Y48: 20490.57163 | Z48: 1 | AA48: 20219.26848 | AB48: 0 | AC48: 20458.95567 | AD48: 0 | AE48: 19698.44739 | AF48: 0 | AG48: 20227.12612 | AH48: 0 | AI48: 18987.34728 | AJ48: 0 | AK48: 20163.31411 | AL48: 0 | AM48: 20249.06362 | AN48: 0 | AO48: 19650.6689 | AP48: 1 | AQ48: 20630.43657 | AR48: 0 | AS48: 19776.24167 | AT48: 0 | AU48: 20805.9159 | AV48: 0 | AW48: 21284.56306 | AX48: 1
A49: WeekdayPD&PMLD | B49: =pd5final -> 0 | C49: 0 | D49: 0 | E49: 0 | F49: 0 | G49: 0 | H49: 0 | I49: 0 | J49: 0 | K49: 0 | L49: 0 | M49: 0 | N49: 0 | O49: 0 | P49: 0 | Q49: 81163.29384 | R49: 0 | S49: 0 | T49: 0 | U49: 0 | V49: 0 | W49: 89111.43472 | X49: 0 | Y49: 0 | Z49: 0 | AA49: 0 | AB49: 0 | AC49: 0 | AD49: 0 | AE49: 0 | AF49: 0 | AG49: 0 | AH49: 0 | AI49: 0 | AJ49: 0 | AK49: 0 | AL49: 0 | AM49: 0 | AN49: 0 | AO49: 0 | AP49: 0 | AQ49: 0 | AR49: 0 | AS49: 0 | AT49: 0 | AU49: 0 | AV49: 0 | AW49: 0 | AX49: 0
A50: WeekdayASD | B50: =asd5final -> 0 | C50: 0 | D50: 0 | E50: 0 | F50: 0 | G50: 0 | H50: 0 | I50: 0 | J50: 0 | K50: 0 | L50: 0 | M50: 0 | N50: 0 | O50: 0 | P50: 0 | Q50: 0 | R50: 0 | S50: 61572.782 | T50: 0 | U50: 0 | V50: 0 | W50: 92041.87489 | X50: 0 | Y50: 0 | Z50: 0 | AA50: 0 | AB50: 0 | AC50: 0 | AD50: 0 | AE50: 0 | AF50: 0 | AG50: 0 | AH50: 0 | AI50: 0 | AJ50: 0 | AK50: 0 | AL50: 0 | AM50: 0 | AN50: 0 | AO50: 0 | AP50: 0 | AQ50: 0 | AR50: 0 | AS50: 0 | AT50: 0 | AU50: 0 | AV50: 0 | AW50: 0 | AX50: 0
A51: WeekendPD&PMLD | B51: =pd7final -> 0 | C51: 0 | D51: 0 | E51: 0 | F51: 0 | G51: 0 | H51: 0 | I51: 0 | J51: 0 | K51: 0 | L51: 0 | M51: 0 | N51: 0 | O51: 0 | P51: 0 | Q51: 109320.3728 | R51: 0 | S51: 0 | T51: 0 | U51: 0 | V51: 0 | W51: 0 | X51: 0 | Y51: 0 | Z51: 0 | AA51: 0 | AB51: 0 | AC51: 0 | AD51: 0 | AE51: 0 | AF51: 0 | AG51: 0 | AH51: 0 | AI51: 0 | AJ51: 0 | AK51: 0 | AL51: 0 | AM51: 0 | AN51: 0 | AO51: 0 | AP51: 0 | AQ51: 0 | AR51: 0 | AS51: 0 | AT51: 0 | AU51: 0 | AV51: 0 | AW51: 0 | AX51: 0
A52: integrity | B52: =[0]!integrity -> ERROR | C52: OK | D52: =IF(C52="OK",0,1) -> 0 | E52: OK | F52: =IF(E52="OK",0,1) -> 0 | G52: OK | H52: =IF(G52="OK",0,1) -> 0 | I52: OK | J52: =IF(I52="OK",0,1) -> 0 | K52: OK | L52: =IF(K52="OK",0,1) -> 0 | M52: OK | N52: =IF(M52="OK",0,1) -> 0 | O52: OK | P52: =IF(O52="OK",0,1) -> 0 | Q52: OK | R52: =IF(Q52="OK",0,1) -> 0 | S52: OK | T52: =IF(S52="OK",0,1) -> 0 | U52: OK | V52: =IF(U52="OK",0,1) -> 0 | W52: OK | X52: =IF(W52="OK",0,1) -> 0 | Y52: OK | Z52: =IF(Y52="OK",0,1) -> 0 | AA52: OK | AB52: =IF(AA52="OK",0,1) -> 0 | AC52: OK | AD52: =IF(AC52="OK",0,1) -> 0 | AE52: OK | AF52: =IF(AE52="OK",0,1) -> 0 | AG52: OK | AH52: =IF(AG52="OK",0,1) -> 0 | AI52: OK | AJ52: =IF(AI52="OK",0,1) -> 0 | AK52: OK | AL52: =IF(AK52="OK",0,1) -> 0 | AM52: OK | AN52: =IF(AM52="OK",0,1) -> 0 | AO52: OK | AP52: =IF(AO52="OK",0,1) -> 0 | AQ52: OK | AR52: =IF(AQ52="OK",0,1) -> 0 | AS52: OK | AT52: =IF(AS52="OK",0,1) -> 0 | AU52: OK | AV52: =IF(AU52="OK",0,1) -> 0 | AW52: OK | AX52: =IF(AW52="OK",0,1) -> 0
A53: nurseryfte | B53: =nurseryfte -> 0 | C53: 0 | E53: 0 | G53: 0 | I53: 0 | K53: 0 | M53: 0 | O53: 0 | Q53: 0 | S53: 0 | U53: 0 | W53: 0 | Y53: 0 | AA53: 6 | AC53: 10 | AE53: 10 | AG53: 8 | AI53: 15 | AK53: 6 | AM53: 12 | AO53: 5 | AQ53: 12 | AS53: 6 | AU53: 0 | AW53: 0
A54: nurserycash | B54: =nurserycash -> 0 | C54: 0 | E54: 0 | G54: 0 | I54: 0 | K54: 0 | M54: 0 | O54: 0 | Q54: 0 | S54: 0 | U54: 0 | W54: 0 | Y54: 0 | AA54: 118624 | AC54: 217073 | AE54: 217073 | AG54: 138800 | AI54: 267512 | AK54: 118624 | AM54: 237248 | AO54: 108536 | AQ54: 237248 | AS54: 118624 | AU54: 0 | AW54: 0
